Workbook

Sheet 计数统计表
A1: 方向 | B1: 工艺学硕 | C1: 工艺专硕 | D1: 催化学硕 | E1: 催化专硕 | F1: 工程学硕 | G1: 工程专硕 | H1: 环境学硕 | I1: 环境专硕 | J1: 国际班 | K1: 总计
A2: 人数 | B2: 57 | C2: 35 | D2: 31 | E2: 18 | F2: 39 | G2: 25 | H2: 31 | I2: 21 | J2: 16 | K2: =SUM(B2:I2) -> 257

Sheet 工艺学硕
A1: 序号 | B1: 学号 | C1: 姓名 | D1: 方向 | E1: 德育成绩 | K1: 智育成绩 | Q1: 文体成绩 | W1: 总分 | X1: 排名
E2: 基础分 | F2: 奖励分 | G2: 惩罚分 | H2: 个人德育总分 | I2: 个人德育总分/基准 | J2: 德育成绩 | K2: 基础分 | L2: 奖励分 | M2: 惩罚分 | N2: 个人智育总分 | O2: 个人智育总分/基准 | P2: 智育成绩 | Q2: 基础分 | R2: 奖励分 | S2: 惩罚分 | T2: 个人文体总分 | U2: 个人文体总分/基准 | V2: 文体成绩
A3: 1 | B3: 2021210625 | C3: 孔繁格 | D3: 工艺学硕 | E3: 96.932 | F3: 6.8 | G3: 0 | H3: 103.732 | I3: 0.8643757083 | J3: 86.43757083 | K3: 87.75 | L3: 5 | M3: 0 | N3: 92.75 | O3: 1 | P3: 100 | Q3: 100 | R3: 6.666666667 | S3: 0 | T3: 106.6666667 | U3: 0.9999999997 | V3: 100 | W3: 97.28751417 | X3: 1
A4: 2 | B4: 2021210608 | C4: 吴剑 | D4: 工艺学硕 | E4: 96.344 | F4: 0.5 | G4: 0 | H4: 96.844 | I4: 0.8069795347 | J4: 80.69795347 | K4: 92.75 | L4: 0 | M4: 0 | N4: 92.75 | O4: 1 | P4: 100 | Q4: 100 | R4: 0 | S4: 0 | T4: 100 | U4: 0.9374999997 | V4: 93.75 | W4: 95.51459069 | X4: 2
A5: 3 | B5: 2021210626 | C5: 马小娟 | D5: 工艺学硕 | E5: 97.212 | F5: 6.8 | G5: 0 | H5: 104.012 | I5: 0.8667088861 | J5: 86.67088861 | K5: 88.28888889 | L5: 2.5 | M5: 0 | N5: 90.78888889 | O5: 0.9788559449 | P5: 97.88559449 | Q5: 100 | R5: 0 | S5: 0 | T5: 100 | U5: 0.9374999997 | V5: 93.75 | W5: 95.22909386 | X5: 3
A6: 4 | B6: 2021210525 | C6: 黎春霖 | D6: 工艺学硕 | E6: 96.4 | F6: 0.5 | G6: 0 | H6: 96.9 | I6: 0.8074461703 | J6: 80.74461703 | K6: 90.17375 | L6: 0 | M6: 0 | N6: 90.17375 | O6: 0.9722237197 | P6: 97.22237197 | Q6: 100 | R6: 0 | S6: 0 | T6: 100 | U6: 0.9374999997 | V6: 93.75 | W6: 93.57958378 | X6: 4
A7: 5 | B7: 2021210634 | C7: 喻婉婷 | D7: 工艺学硕 | E7: 96.624 | F7: 6.6 | G7: 0 | H7: 103.224 | I7: 0.8601426572 | J7: 86.01426572 | K7: 87.81111111 | L7: 0 | M7: 0 | N7: 87.81111111 | O7: 0.9467505241 | P7: 94.67505241 | Q7: 100 | R7: 0 | S7: 0 | T7: 100 | U7: 0.9374999997 | V7: 93.75 | W7: 92.85038983 | X7: 5
A8: 6 | B8: 2021210620 | C8: 张晨 | D8: 工艺学硕 | E8: 96.764 | F8: 16 | G8: 0 | H8: 112.764 | I8: 0.9396373575 | J8: 93.96373575 | K8: 85.11733333 | L8: 0.5555555556 | M8: 0 | N8: 85.67288889 | O8: 0.9236969152 | P8: 92.36969152 | Q8: 100 | R8: 0 | S8: 0 | T8: 100 | U8: 0.9374999997 | V8: 93.75 | W8: 92.82653122 | X8: 6
A9: 7 | B9: 2021210585 | C9: 王建丽 | D9: 工艺学硕 | E9: 96.792 | F9: 6.6 | G9: 0 | H9: 103.392 | I9: 0.8615425638 | J9: 86.15425638 | K9: 86.44176471 | L9: 0 | M9: 0 | N9: 86.44176471 | O9: 0.9319866815 | P9: 93.19866815 | Q9: 100 | R9: 0 | S9: 0 | T9: 100 | U9: 0.9374999997 | V9: 93.75 | W9: 91.84491898 | X9: 7
A10: 8 | B10: 2021210511 | C10: 李东璇 | D10: 工艺学硕 | E10: 97.1 | F10: 13.4 | G10: 0 | H10: 110.5 | I10: 0.9207719485 | J10: 92.07719485 | K10: 84.2125 | L10: 0.4 | M10: 0 | N10: 84.6125 | O10: 0.9122641509 | P10: 91.22641509 | Q10: 100 | R10: 0 | S10: 0 | T10: 100 | U10: 0.9374999997 | V10: 93.75 | W10: 91.64892954 | X10: 8
A11: 9 | B11: 2021210600 | C11: 刘晓月 | D11: 工艺学硕 | E11: 96.372 | F11: 3 | G11: 0 | H11: 99.372 | I11: 0.828044797 | J11: 82.8044797 | K11: 86.8 | L11: 0 | M11: 0 | N11: 86.8 | O11: 0.9358490566 | P11: 93.58490566 | Q11: 100 | R11: 0 | S11: 0 | T11: 100 | U11: 0.9374999997 | V11: 93.75 | W11: 91.4453299 | X11: 9
A12: 10 | B12: 2021210535 | C12: 李增 | D12: 工艺学硕 | E12: 97.1 | F12: 5 | G12: 0 | H12: 102.1 | I12: 0.8507766149 | J12: 85.07766149 | K12: 85.1005 | L12: 0 | M12: 0 | N12: 85.1005 | O12: 0.9175256065 | P12: 91.75256065 | Q12: 100 | R12: 6.666666667 | S12: 0 | T12: 106.6666667 | U12: 0.9999999997 | V12: 100 | W12: 91.24232475 | X12: 10
A13: 11 | B13: 2021210590 | C13: 孙俭 | D13: 工艺学硕 | E13: 96.876 | F13: 7 | G13: 0 | H13: 103.876 | I13: 0.8655756283 | J13: 86.55756283 | K13: 85.45 | L13: 0 | M13: 0 | N13: 85.45 | O13: 0.9212938005 | P13: 92.12938005 | Q13: 100 | R13: 0 | S13: 0 | T13: 100 | U13: 0.9374999997 | V13: 93.75 | W13: 91.1770786 | X13: 11
A14: 12 | B14: 2021210536 | C14: 刘束玉 | D14: 工艺学硕 | E14: 97.1 | F14: 4.6 | G14: 0 | H14: 101.7 | I14: 0.8474435038 | J14: 84.74435038 | K14: 85.784375 | L14: 0 | M14: 0 | N14: 85.784375 | O14: 0.9248989218 | P14: 92.48989218 | Q14: 100 | R14: 0 | S14: 0 | T14: 100 | U14: 0.9374999997 | V14: 93.75 | W14: 91.0667946 | X14: 12
A15: 13 | B15: 2021210639 | C15: 许振 | D15: 工艺学硕 | E15: 96.876 | F15: 5 | G15: 0 | H15: 101.876 | I15: 0.8489100727 | J15: 84.89100727 | K15: 85.69 | L15: 0 | M15: 0 | N15: 85.69 | O15: 0.9238814016 | P15: 92.38814016 | Q15: 100 | R15: 0 | S15: 0 | T15: 100 | U15: 0.9374999997 | V15: 93.75 | W15: 91.02489957 | X15: 13
A16: 14 | B16: 2021210538 | C16: 姬娅茹 | D16: 工艺学硕 | E16: 97.1 | F16: 4 | G16: 0 | H16: 101.1 | I16: 0.8424438371 | J16: 84.24438371 | K16: 85.512 | L16: 0 | M16: 0 | N16: 85.512 | O16: 0.9219622642 | P16: 92.19622642 | Q16: 100 | R16: 0 | S16: 0 | T16: 100 | U16: 0.9374999997 | V16: 93.75 | W16: 90.76123523 | X16: 14
A17: 15 | B17: 2021210633 | C17: 何海平 | D17: 工艺学硕 | E17: 96.456 | F17: 3.3 | G17: 0 | H17: 99.756 | I17: 0.8312445837 | J17: 83.12445837 | K17: 85.80555556 | L17: 0 | M17: 0 | N17: 85.80555556 | O17: 0.9251272836 | P17: 92.51272836 | Q17: 100 | R17: 0 | S17: 0 | T17: 100 | U17: 0.9374999997 | V17: 93.75 | W17: 90.75880153 | X17: 15
A18: 16 | B18: 2021210555 | C18: 王鹏军 | D18: 工艺学硕 | E18: 97.1 | F18: 11.9 | G18: 0 | H18: 109 | I18: 0.9082727818 | J18: 90.82727818 | K18: 83.68126984 | L18: 0 | M18: 0 | N18: 83.68126984 | O18: 0.9022239336 | P18: 90.22239336 | Q18: 100 | R18: 0 | S18: 0 | T18: 100 | U18: 0.9374999997 | V18: 93.75 | W18: 90.69613099 | X18: 16
A19: 17 | B19: 2021210630 | C19: 杨坤 | D19: 工艺学硕 | E19: 96.484 | F19: 0 | G19: 0 | H19: 96.484 | I19: 0.8039797347 | J19: 80.39797347 | K19: 86.41587302 | L19: 0 | M19: 0 | N19: 86.41587302 | O19: 0.9317075258 | P19: 93.17075258 | Q19: 100 | R19: 0 | S19: 0 | T19: 100 | U19: 0.9374999997 | V19: 93.75 | W19: 90.6741215 | X19: 17
A20: 18 | B20: 2021210632 | C20: 韩轲 | D20: 工艺学硕 | E20: 96.652 | F20: 0.5 | G20: 0 | H20: 97.152 | I20: 0.8095460303 | J20: 80.95460303 | K20: 86.17222222 | L20: 0 | M20: 0 | N20: 86.17222222 | O20: 0.929080563 | P20: 92.9080563 | Q20: 100 | R20: 0 | S20: 0 | T20: 100 | U20: 0.9374999997 | V20: 93.75 | W20: 90.60156002 | X20: 18
A21: 19 | B21: 2021210519 | C21: 刘振涛 | D21: 工艺学硕 | E21: 97.1 | F21: 3 | G21: 0 | H21: 100.1 | I21: 0.8341110593 | J21: 83.41110593 | K21: 85.38555556 | L21: 0 | M21: 0 | N21: 85.38555556 | O21: 0.9205989817 | P21: 92.05989817 | Q21: 100 | R21: 0 | S21: 0 | T21: 100 | U21: 0.9374999997 | V21: 93.75 | W21: 90.49914991 | X21: 19
A22: 20 | B22: 2021210561 | C22: 房浩楠 | D22: 工艺学硕 | E22: 97.1 | F22: 3.5 | G22: 0 | H22: 100.6 | I22: 0.8382774482 | J22: 83.82774482 | K22: 82.692 | L22: 2.5 | M22: 0 | N22: 85.192 | O22: 0.9185121294 | P22: 91.85121294 | Q22: 100 | R22: 0 | S22: 0 | T22: 100 | U22: 0.9374999997 | V22: 93.75 | W22: 90.43639802 | X22: 20
A23: 21 | B23: 2021210567 | C23: 郑龙娇 | D23: 工艺学硕 | E23: 97.1 | F23: 5.5 | G23: 0 | H23: 102.6 | I23: 0.8549430038 | J23: 85.49430038 | K23: 82.441174 | L23: 2.083333333 | M23: 0 | N23: 84.52450733 | O23: 0.9113154429 | P23: 91.13154429 | Q23: 100 | R23: 0 | S23: 0 | T23: 100 | U23: 0.9374999997 | V23: 93.75 | W23: 90.26594108 | X23: 21
A24: 22 | B24: 2021210578 | C24: 封心怡 | D24: 工艺学硕 | E24: 97.1 | F24: 0 | G24: 0 | H24: 97.1 | I24: 0.8091127258 | J24: 80.91127258 | K24: 85.730001 | L24: 0 | M24: 0 | N24: 85.730001 | O24: 0.9243126792 | P24: 92.43126792 | Q24: 100 | R24: 0 | S24: 0 | T24: 100 | U24: 0.9374999997 | V24: 93.75 | W24: 90.25914206 | X24: 22
A25: 23 | B25: 2021210579 | C25: 霍鑫鑫 | D25: 工艺学硕 | E25: 97.1 | F25: 0 | G25: 0 | H25: 97.1 | I25: 0.8091127258 | J25: 80.91127258 | K25: 85.364 | L25: 0 | M25: 0 | N25: 85.364 | O25: 0.9203665768 | P25: 92.03665768 | Q25: 100 | R25: 0 | S25: 0 | T25: 100 | U25: 0.9374999997 | V25: 93.75 | W25: 89.98291489 | X25: 23
A26: 24 | B26: 2021210526 | C26: 张亚红 | D26: 工艺学硕 | E26: 97.1 | F26: 4 | G26: 0 | H26: 101.1 | I26: 0.8424438371 | J26: 84.24438371 | K26: 84.29375 | L26: 0 | M26: 0 | N26: 84.29375 | O26: 0.9088274933 | P26: 90.88274933 | Q26: 100 | R26: 0 | S26: 0 | T26: 100 | U26: 0.9374999997 | V26: 93.75 | W26: 89.84180127 | X26: 24
A27: 25 | B27: 2021210611 | C27: 李爽 | D27: 工艺学硕 | E27: 96.148 | F27: 7 | G27: 0 | H27: 103.148 | I27: 0.859509366 | J27: 85.9509366 | K27: 83.443 | L27: 0 | M27: 0 | N27: 83.443 | O27: 0.8996549865 | P27: 89.96549865 | Q27: 100 | R27: 0 | S27: 0 | T27: 100 | U27: 0.9374999997 | V27: 93.75 | W27: 89.54103638 | X27: 25
A28: 26 | B28: 2021210629 | C28: 王耀 | D28: 工艺学硕 | E28: 96.288 | F28: 4 | G28: 0 | H28: 100.288 | I28: 0.8356776215 | J28: 83.56776215 | K28: 83.61873016 | L28: 0 | M28: 0 | N28: 83.61873016 | O28: 0.9015496513 | P28: 90.15496513 | Q28: 100 | R28: 0 | S28: 0 | T28: 100 | U28: 0.9374999997 | V28: 93.75 | W28: 89.19702802 | X28: 26
A29: 27 | B29: 2021210637 | C29: 候宁冉 | D29: 工艺学硕 | E29: 96.568 | F29: 8.1 | G29: 0 | H29: 104.668 | I29: 0.8721751883 | J29: 87.21751883 | K29: 82.54 | L29: 0 | M29: 0 | N29: 82.54 | O29: 0.8899191375 | P29: 88.99191375 | Q29: 100 | R29: 0 | S29: 0 | T29: 100 | U29: 0.9374999997 | V29: 93.75 | W29: 89.11284339 | X29: 27
A30: 28 | B30: 2021210592 | C30: 郑陶然 | D30: 工艺学硕 | E30: 96.4 | F30: 1.5 | G30: 0 | H30: 97.9 | I30: 0.8157789481 | J30: 81.57789481 | K30: 83.6775 | L30: 0 | M30: 0 | N30: 83.6775 | O30: 0.9021832884 | P30: 90.21832884 | Q30: 100 | R30: 0 | S30: 0 | T30: 100 | U30: 0.9374999997 | V30: 93.75 | W30: 88.84340915 | X30: 28
A31: 29 | B31: 2021210580 | C31: 张建超 | D31: 工艺学硕 | E31: 97.1 | F31: 11.8 | G31: 0 | H31: 108.9 | I31: 0.907439504 | J31: 90.7439504 | K31: 80.95586667 | L31: 0 | M31: 0 | N31: 80.95586667 | O31: 0.8728395328 | P31: 87.28395328 | Q31: 100 | R31: 0 | S31: 0 | T31: 100 | U31: 0.9374999997 | V31: 93.75 | W31: 88.62255738 | X31: 29
A32: 30 | B32: 2021210509 | C32: 杨翰林 | D32: 工艺学硕 | E32: 96.4 | F32: 0 | G32: 0 | H32: 96.4 | I32: 0.8032797813 | J32: 80.32797813 | K32: 83.5 | L32: 0 | M32: 0 | N32: 83.5 | O32: 0.9002695418 | P32: 90.02695418 | Q32: 100 | R32: 0 | S32: 0 | T32: 100 | U32: 0.9374999997 | V32: 93.75 | W32: 88.45946355 | X32: 30
A33: 31 | B33: 2021210527 | C33: 祝庆 | D33: 工艺学硕 | E33: 97.1 | F33: 0.5 | G33: 0 | H33: 97.6 | I33: 0.8132791147 | J33: 81.32791147 | K33: 83.15555556 | L33: 0 | M33: 0 | N33: 83.15555556 | O33: 0.896555855 | P33: 89.6555855 | Q33: 100 | R33: 0 | S33: 0 | T33: 100 | U33: 0.9374999997 | V33: 93.75 | W33: 88.39949215 | X33: 31
A34: 32 | B34: 2021210537 | C34: 宁小奇 | D34: 工艺学硕 | E34: 97.1 | F34: 4 | G34: 0 | H34: 101.1 | I34: 0.8424438371 | J34: 84.24438371 | K34: 78.16176471 | L34: 4.166666667 | M34: 0 | N34: 82.32843137 | O34: 0.8876380741 | P34: 88.76380741 | Q34: 100 | R34: 0 | S34: 0 | T34: 100 | U34: 0.9374999997 | V34: 93.75 | W34: 88.35854193 | X34: 32
A35: 33 | B35: 2021210562 | C35: 孙栋 | D35: 工艺学硕 | E35: 97.1 | F35: 0 | G35: 0 | H35: 97.1 | I35: 0.8091127258 | J35: 80.91127258 | K35: 80.543869 | L35: 2.5 | M35: 0 | N35: 83.043869 | O35: 0.8953516873 | P35: 89.53516873 | Q35: 100 | R35: 0 | S35: 0 | T35: 100 | U35: 0.9374999997 | V35: 93.75 | W35: 88.23187263 | X35: 33
A36: 34 | B36: 2021210530 | C36: 王檀 | D36: 工艺学硕 | E36: 97.1 | F36: 2 | G36: 0 | H36: 99.1 | I36: 0.8257782814 | J36: 82.57782814 | K36: 82.11277778 | L36: 0 | M36: 0 | N36: 82.11277778 | O36: 0.885312968 | P36: 88.5312968 | Q36: 100 | R36: 0 | S36: 0 | T36: 100 | U36: 0.9374999997 | V36: 93.75 | W36: 87.86247339 | X36: 34
A37: 35 | B37: 2021210577 | C37: 陈俊阳 | D37: 工艺学硕 | E37: 97.1 | F37: 0 | G37: 0 | H37: 97.1 | I37: 0.8091127258 | J37: 80.91127258 | K37: 82.452531 | L37: 0 | M37: 0 | N37: 82.452531 | O37: 0.8889760755 | P37: 88.89760755 | Q37: 100 | R37: 0 | S37: 0 | T37: 100 | U37: 0.9374999997 | V37: 93.75 | W37: 87.7855798 | X37: 35
A38: 36 | B38: 2021210584 | C38: 董朋阁 | D38: 工艺学硕 | E38: 96.176 | F38: 0 | G38: 0 | H38: 96.176 | I38: 0.8014132391 | J38: 80.14132391 | K38: 82.47529412 | L38: 0 | M38: 0 | N38: 82.47529412 | O38: 0.8892214999 | P38: 88.92214999 | Q38: 100 | R38: 0 | S38: 0 | T38: 100 | U38: 0.9374999997 | V38: 93.75 | W38: 87.64876978 | X38: 36
A39: 37 | B39: 2021210612 | C39: 魏萌 | D39: 工艺学硕 | E39: 96.092 | F39: 1 | G39: 0 | H39: 97.092 | I39: 0.8090460636 | J39: 80.90460636 | K39: 81.5145 | L39: 0 | M39: 0 | N39: 81.5145 | O39: 0.8788625337 | P39: 87.88625337 | Q39: 100 | R39: 5.266666667 | S39: 0 | T39: 105.2666667 | U39: 0.9868749997 | V39: 98.6875 | W39: 87.57004863 | X39: 37
A40: 38 | B40: 2021210589 | C40: 宋大山 | D40: 工艺学硕 | E40: 96.12 | F40: 4 | G40: 0 | H40: 100.12 | I40: 0.8342777148 | J40: 83.42777148 | K40: 81.22 | L40: 0 | M40: 0 | N40: 81.22 | O40: 0.8756873315 | P40: 87.56873315 | Q40: 100 | R40: 0 | S40: 0 | T40: 100 | U40: 0.9374999997 | V40: 93.75 | W40: 87.3586675 | X40: 38
A41: 39 | B41: 2021210576 | C41: 翟霖晓 | D41: 工艺学硕 | E41: 97.1 | F41: 0.5 | G41: 0 | H41: 97.6 | I41: 0.8132791147 | J41: 81.32791147 | K41: 81.718819 | L41: 0 | M41: 0 | N41: 81.718819 | O41: 0.881065434 | P41: 88.1065434 | Q41: 100 | R41: 0 | S41: 0 | T41: 100 | U41: 0.9374999997 | V41: 93.75 | W41: 87.31516267 | X41: 39
A42: 40 | B42: 2021210599 | C42: 白天瑜 | D42: 工艺学硕 | E42: 96.848 | F42: 3 | G42: 0 | H42: 99.848 | I42: 0.8320111993 | J42: 83.20111993 | K42: 81.20514706 | L42: 0 | M42: 0 | N42: 81.20514706 | O42: 0.875527192 | P42: 87.5527192 | Q42: 100 | R42: 0 | S42: 0 | T42: 100 | U42: 0.9374999997 | V42: 93.75 | W42: 87.30212743 | X42: 40
A43: 41 | B43: 2021210565 | C43: 朱家伟 | D43: 工艺学硕 | E43: 97.1 | F43: 3 | G43: 0 | H43: 100.1 | I43: 0.8341110593 | J43: 83.41110593 | K43: 80.688569 | L43: 0 | M43: 0 | N43: 80.688569 | O43: 0.8699576173 | P43: 86.99576173 | Q43: 100 | R43: 0 | S43: 0 | T43: 100 | U43: 0.9374999997 | V43: 93.75 | W43: 86.95425439 | X43: 41
A44: 42 | B44: 2021210609 | C44: 赵翔宇 | D44: 工艺学硕 | E44: 96.316 | F44: 0 | G44: 0 | H44: 96.316 | I44: 0.802579828 | J44: 80.2579828 | K44: 81.25 | L44: 0 | M44: 0 | N44: 81.25 | O44: 0.8760107817 | P44: 87.60107817 | Q44: 100 | R44: 0 | S44: 0 | T44: 100 | U44: 0.9374999997 | V44: 93.75 | W44: 86.74735128 | X44: 42
A45: 43 | B45: 2021210575 | C45: 徐文杰 | D45: 工艺学硕 | E45: 97.1 | F45: 4 | G45: 0 | H45: 101.1 | I45: 0.8424438371 | J45: 84.24438371 | K45: 80.147058 | L45: 0 | M45: 0 | N45: 80.147058 | O45: 0.8641192237 | P45: 86.41192237 | Q45: 100 | R45: 0 | S45: 0 | T45: 100 | U45: 0.9374999997 | V45: 93.75 | W45: 86.7122224 | X45: 43
A46: 44 | B46: 2021210557 | C46: 左都凤 | D46: 工艺学硕 | E46: 97.1 | F46: 4 | G46: 0 | H46: 101.1 | I46: 0.8424438371 | J46: 84.24438371 | K46: 80.068169 | L46: 0 | M46: 0 | N46: 80.068169 | O46: 0.8632686685 | P46: 86.32686685 | Q46: 100 | R46: 0 | S46: 0 | T46: 100 | U46: 0.9374999997 | V46: 93.75 | W46: 86.65268353 | X46: 44
A47: 45 | B47: 2021210571 | C47: 杨捷 | D47: 工艺学硕 | E47: 97.1 | F47: 4 | G47: 0 | H47: 101.1 | I47: 0.8424438371 | J47: 84.24438371 | K47: 79.421885 | L47: 0 | M47: 0 | N47: 79.421885 | O47: 0.8563006469 | P47: 85.63006469 | Q47: 100 | R47: 0 | S47: 0 | T47: 100 | U47: 0.9374999997 | V47: 93.75 | W47: 86.16492202 | X47: 45
A48: 46 | B48: 2021210529 | C48: 王昊东 | D48: 工艺学硕 | E48: 97.1 | F48: 0 | G48: 0 | H48: 97.1 | I48: 0.8091127258 | J48: 80.91127258 | K48: 80.20555556 | L48: 0 | M48: 0 | N48: 80.20555556 | O48: 0.8647499251 | P48: 86.47499251 | Q48: 100 | R48: 0 | S48: 0 | T48: 100 | U48: 0.9374999997 | V48: 93.75 | W48: 86.08974928 | X48: 46
A49: 47 | B49: 2021210588 | C49: 李玉梅 | D49: 工艺学硕 | E49: 96.372 | F49: 1.5 | G49: 0 | H49: 97.872 | I49: 0.8155456303 | J49: 81.55456303 | K49: 79.28 | L49: 0.75 | M49: 0 | N49: 80.03 | O49: 0.8628571429 | P49: 86.28571429 | Q49: 100 | R49: 0 | S49: 0 | T49: 100 | U49: 0.9374999997 | V49: 93.75 | W49: 86.08591261 | X49: 47
A50: 48 | B50: 2021210618 | C50: 张肖云 | D50: 工艺学硕 | E50: 96.484 | F50: 12 | G50: 0 | H50: 108.484 | I50: 0.9039730685 | J50: 90.39730685 | K50: 77.15625 | L50: 0.01 | M50: 0 | N50: 77.16625 | O50: 0.8319811321 | P50: 83.19811321 | Q50: 100 | R50: 0 | S50: 0 | T50: 100 | U50: 0.9374999997 | V50: 93.75 | W50: 85.69314061 | X50: 48
A51: 49 | B51: 2021210564 | C51: 芮阳 | D51: 工艺学硕 | E51: 97.1 | F51: 0 | G51: 0 | H51: 97.1 | I51: 0.8091127258 | J51: 80.91127258 | K51: 79.389412 | L51: 0 | M51: 0 | N51: 79.389412 | O51: 0.8559505337 | P51: 85.59505337 | Q51: 100 | R51: 0 | S51: 0 | T51: 100 | U51: 0.9374999997 | V51: 93.75 | W51: 85.47379187 | X51: 49
A52: 50 | B52: 2021210591 | C52: 张宸玮 | D52: 工艺学硕 | E52: 96.176 | F52: 0 | G52: 0 | H52: 96.176 | I52: 0.8014132391 | J52: 80.14132391 | K52: 79.51 | L52: 0 | M52: 0 | N52: 79.51 | O52: 0.8572506739 | P52: 85.72506739 | Q52: 100 | R52: 0 | S52: 0 | T52: 100 | U52: 0.9374999997 | V52: 93.75 | W52: 85.41081195 | X52: 50
A53: 51 | B53: 2021210556 | C53: 徐琪 | D53: 工艺学硕 | E53: 97.1 | F53: 0 | G53: 0 | H53: 97.1 | I53: 0.8091127258 | J53: 80.91127258 | K53: 79.24533333 | L53: 0 | M53: 0 | N53: 79.24533333 | O53: 0.8543971249 | P53: 85.43971249 | Q53: 100 | R53: 0 | S53: 0 | T53: 100 | U53: 0.9374999997 | V53: 93.75 | W53: 85.36505326 | X53: 51
A54: 52 | B54: 2021210520 | C54: 王丹丹 | D54: 工艺学硕 | E54: 97.1 | F54: 8 | G54: 0 | H54: 105.1 | I54: 0.8757749483 | J54: 87.57749483 | K54: 75.78555556 | L54: 0 | M54: 0 | N54: 75.78555556 | O54: 0.8170949386 | P54: 81.70949386 | Q54: 100 | R54: 6.666666667 | S54: 0 | T54: 106.6666667 | U54: 0.9999999997 | V54: 100 | W54: 84.71214467 | X54: 52
A55: 53 | B55: 2021210510 | C55: 韩肖宁 | D55: 工艺学硕 | E55: 97.1 | F55: 1 | G55: 0 | H55: 98.1 | I55: 0.8174455036 | J55: 81.74455036 | K55: 77.066875 | L55: 0 | M55: 0 | N55: 77.066875 | O55: 0.8309097035 | P55: 83.09097035 | Q55: 100 | R55: 0 | S55: 0 | T55: 100 | U55: 0.9374999997 | V55: 93.75 | W55: 83.88758932 | X55: 53
A56: 54 | B56: 2021210617 | C56: 田乐斌 | D56: 工艺学硕 | E56: 96.008 | F56: 24 | G56: 0 | H56: 120.008 | I56: 1 | J56: 100 | K56: 71.38235294 | L56: 0 | M56: 0 | N56: 71.38235294 | O56: 0.769621056 | P56: 76.9621056 | Q56: 100 | R56: 0 | S56: 0 | T56: 100 | U56: 0.9374999997 | V56: 93.75 | W56: 83.24847392 | X56: 54
A57: 55 | B57: 2021210570 | C57: 廖逸飞 | D57: 工艺学硕 | E57: 97.1 | F57: 6.6 | G57: 0 | H57: 103.7 | I57: 0.8641090594 | J57: 86.41090594 | K57: 73.201145 | L57: 0 | M57: 0 | N57: 73.201145 | O57: 0.7892306739 | P57: 78.92306739 | Q57: 100 | R57: 0 | S57: 0 | T57: 100 | U57: 0.9374999997 | V57: 93.75 | W57: 81.90332836 | X57: 55
A58: 56 | B58: 2021210566 | C58: 陈奕苇 | D58: 工艺学硕 | E58: 96.4 | F58: 1 | G58: 0 | H58: 97.4 | I58: 0.8116125592 | J58: 81.16125592 | K58: 73.679446 | L58: 0 | M58: 0 | N58: 73.679446 | O58: 0.794387558 | P58: 79.4387558 | Q58: 100 | R58: 0 | S58: 0 | T58: 100 | U58: 0.9374999997 | V58: 93.75 | W58: 81.21438024 | X58: 56
A59: 57 | B59: 2021210640 | C59: 姚荣鹏 | D59: 工艺学硕 | E59: 96.092 | F59: 3.4 | G59: 0 | H59: 99.492 | I59: 0.8290447304 | J59: 82.90447304 | K59: 71.7325 | L59: 0 | M59: 0 | N59: 71.7325 | O59: 0.7733962264 | P59: 77.33962264 | Q59: 100 | R59: 0 | S59: 0 | T59: 100 | U59: 0.9374999997 | V59: 93.75 | W59: 80.09363046 | X59: 57

Sheet 工艺专硕
A1: 序号 | B1: 学号 | C1: 姓名 | D1: 方向 | E1: 德育成绩 | K1: 智育成绩 | Q1: 文体成绩 | W1: 总分 | X1: 排名
E2: 基础分 | F2: 奖励分 | G2: 惩罚分 | H2: 个人德育总分 | I2: 个人德育总分/基准 | J2: 德育总成绩 | K2: 基础分 | L2: 奖励分 | M2: 惩罚分 | N2: 个人智育总分 | O2: 个人智育总分/基准 | P2: 智育总成绩 | Q2: 基础分 | R2: 奖励分 | S2: 惩罚分 | T2: 个人文体总分 | U2: 个人文体总分/基准 | V2: 文体总成绩
A3: 1 | B3: 2021215334 | C3: 王梦 | D3: 工艺专硕 | E3: 97.08 | F3: 7 | G3: 0 | H3: 104.08 | I3: 0.9485964273 | J3: 94.85964273 | K3: 91.01425 | L3: 0 | M3: 0 | N3: 91.01425 | O3: 1 | P3: 100 | Q3: 100 | R3: 0 | S3: 0 | T3: 100 | U3: 0.8976660682 | V3: 89.76660682 | W3: 97.94858923 | X3: 1
A4: 2 | B4: 2021215313 | C4: 李宇慧 | D4: 工艺专硕 | E4: 96.68 | F4: 7 | G4: 0 | H4: 103.68 | I4: 0.9449507838 | J4: 94.49507838 | K4: 91.00161765 | L4: 0 | M4: 0 | N4: 91.00161765 | O4: 0.9998612047 | P4: 99.98612047 | Q4: 100 | R4: 0 | S4: 0 | T4: 100 | U4: 0.8976660682 | V4: 89.76660682 | W4: 97.86596069 | X4: 2
A5: 3 | B5: 2021215322 | C5: 穆亚鑫 | D5: 工艺专硕 | E5: 96.96 | F5: 1 | G5: 0 | H5: 97.96 | I5: 0.8928180824 | J5: 89.28180824 | K5: 90.344 | L5: 0 | M5: 0 | N5: 90.344 | O5: 0.9926357686 | P5: 99.26357686 | Q5: 100 | R5: 0 | S5: 0 | T5: 100 | U5: 0.8976660682 | V5: 89.76660682 | W5: 96.31752613 | X5: 3
A6: 4 | B6: 2021215331 | C6: 王时雨 | D6: 工艺专硕 | E6: 96.94 | F6: 3 | G6: 0 | H6: 99.94 | I6: 0.9108640175 | J6: 91.08640175 | K6: 88.743625 | L6: 0 | M6: 0 | N6: 88.743625 | O6: 0.9750519836 | P6: 97.50519836 | Q6: 100 | R6: 0 | S6: 0 | T6: 100 | U6: 0.8976660682 | V6: 89.76660682 | W6: 95.44757989 | X6: 4
A7: 5 | B7: 2021215348 | C7: 赵赛 | D7: 工艺专硕 | E7: 96.88 | F7: 0.5 | G7: 0 | H7: 97.38 | I7: 0.8875318994 | J7: 88.75318994 | K7: 88.63679412 | L7: 0 | M7: 0 | N7: 88.63679412 | O7: 0.9738782017 | P7: 97.38782017 | Q7: 100 | R7: 0 | S7: 0 | T7: 100 | U7: 0.8976660682 | V7: 89.76660682 | W7: 94.89877279 | X7: 5
A8: 6 | B8: 2021215321 | C8: 李永强 | D8: 工艺专硕 | E8: 96.82 | F8: 1.5 | G8: 0 | H8: 98.32 | I8: 0.8960991615 | J8: 89.60991615 | K8: 87.70573529 | L8: 0 | M8: 0 | N8: 87.70573529 | O8: 0.963648388 | P8: 96.3648388 | Q8: 100 | R8: 0 | S8: 0 | T8: 100 | U8: 0.8976660682 | V8: 89.76660682 | W8: 94.35403107 | X8: 6
A9: 7 | B9: 2021215366 | C9: 程佳婷 | D9: 工艺专硕 | E9: 96.74 | F9: 12 | G9: 0 | H9: 108.74 | I9: 0.9910681735 | J9: 99.10681735 | K9: 85.12666667 | L9: 0 | M9: 0 | N9: 85.12666667 | O9: 0.9353114119 | P9: 93.53114119 | Q9: 100 | R9: 0 | S9: 0 | T9: 100 | U9: 0.8976660682 | V9: 89.76660682 | W9: 94.26982298 | X9: 7
A10: 8 | B10: 2021215340 | C10: 王磊灏 | D10: 工艺专硕 | E10: 97.24 | F10: 10.3 | G10: 0 | H10: 107.54 | I10: 0.9801312432 | J10: 98.01312432 | K10: 85.13875 | L10: 0 | M10: 0 | N10: 85.13875 | O10: 0.935444175 | P10: 93.5444175 | Q10: 100 | R10: 0 | S10: 0 | T10: 100 | U10: 0.8976660682 | V10: 89.76660682 | W10: 94.06037779 | X10: 8
A11: 9 | B11: 2021215368 | C11: 刘旭 | D11: 工艺专硕 | E11: 96.72 | F11: 13 | G11: 0 | H11: 109.72 | I11: 1 | J11: 100 | K11: 83.731875 | L11: 0.5555555556 | M11: 0 | N11: 84.28743056 | O11: 0.9260904809 | P11: 92.60904809 | Q11: 100 | R11: 0 | S11: 0 | T11: 100 | U11: 0.8976660682 | V11: 89.76660682 | W11: 93.80299435 | X11: 9
A12: 10 | B12: 2021215343 | C12: 王娣 | D12: 工艺专硕 | E12: 96.64 | F12: 2 | G12: 0 | H12: 98.64 | I12: 0.8990156763 | J12: 89.90156763 | K12: 86.86235294 | L12: 0 | M12: 0 | N12: 86.86235294 | O12: 0.9543819011 | P12: 95.43819011 | Q12: 100 | R12: 0 | S12: 0 | T12: 100 | U12: 0.8976660682 | V12: 89.76660682 | W12: 93.76370728 | X12: 10
A13: 11 | B13: 2021215353 | C13: 尹蓉蓉 | D13: 工艺专硕 | E13: 97.16 | F13: 4 | G13: 0 | H13: 101.16 | I13: 0.92198323 | J13: 92.198323 | K13: 84.365 | L13: 0 | M13: 0 | N13: 84.365 | O13: 0.926942759 | P13: 92.6942759 | Q13: 100 | R13: 11.4 | S13: 0 | T13: 111.4 | U13: 1 | V13: 100 | W13: 93.32565773 | X13: 11
A14: 12 | B14: 2021215336 | C14: 李长永 | D14: 工艺专硕 | E14: 96.7 | F14: 0 | G14: 0 | H14: 96.7 | I14: 0.8813343055 | J14: 88.13343055 | K14: 86.2334 | L14: 0 | M14: 0 | N14: 86.2334 | O14: 0.9474714124 | P14: 94.74714124 | Q14: 100 | R14: 0 | S14: 0 | T14: 100 | U14: 0.8976660682 | V14: 89.76660682 | W14: 92.92634566 | X14: 12
A15: 13 | B15: 2021215332 | C15: 苑显龙 | D15: 工艺专硕 | E15: 96.94 | F15: 4 | G15: 0 | H15: 100.94 | I15: 0.9199781261 | J15: 91.99781261 | K15: 84.62526316 | L15: 0 | M15: 0 | N15: 84.62526316 | O15: 0.9298023459 | P15: 92.98023459 | Q15: 100 | R15: 0 | S15: 0 | T15: 100 | U15: 0.8976660682 | V15: 89.76660682 | W15: 92.46238742 | X15: 13
A16: 14 | B16: 2021215356 | C16: 张旭 | D16: 工艺专硕 | E16: 96.94 | F16: 0 | G16: 0 | H16: 96.94 | I16: 0.8835216916 | J16: 88.35216916 | K16: 84.64380952 | L16: 0 | M16: 0 | N16: 84.64380952 | O16: 0.9300061202 | P16: 93.00061202 | Q16: 100 | R16: 0 | S16: 0 | T16: 100 | U16: 0.8976660682 | V16: 89.76660682 | W16: 91.74752293 | X16: 14
A17: 15 | B17: 2021215305 | C17: 王涛 | D17: 工艺专硕 | E17: 96.92 | F17: 6 | G17: 0 | H17: 102.92 | I17: 0.9380240612 | J17: 93.80240612 | K17: 83.13764706 | L17: 0 | M17: 0 | N17: 83.13764706 | O17: 0.9134574757 | P17: 91.34574757 | Q17: 100 | R17: 0 | S17: 0 | T17: 100 | U17: 0.8976660682 | V17: 89.76660682 | W17: 91.67916521 | X17: 15
A18: 16 | B18: 2021215337 | C18: 李汝振 | D18: 工艺专硕 | E18: 97.1 | F18: 4.6 | G18: 0 | H18: 101.7 | I18: 0.9269048487 | J18: 92.69048487 | K18: 83.18555556 | L18: 0 | M18: 0 | N18: 83.18555556 | O18: 0.9139838603 | P18: 91.39838603 | Q18: 100 | R18: 0 | S18: 0 | T18: 100 | U18: 0.8976660682 | V18: 89.76660682 | W18: 91.49362788 | X18: 16
A19: 17 | B19: 2021215344 | C19: 周琳睿 | D19: 工艺专硕 | E19: 96.8 | F19: 0 | G19: 0 | H19: 96.8 | I19: 0.8822457164 | J19: 88.22457164 | K19: 82.80833333 | L19: 0 | M19: 0 | N19: 82.80833333 | O19: 0.9098392102 | P19: 90.98392102 | Q19: 100 | R19: 0 | S19: 0 | T19: 100 | U19: 0.8976660682 | V19: 89.76660682 | W19: 90.31031972 | X19: 17
A20: 18 | B20: 2021215367 | C20: 李明杰 | D20: 工艺专硕 | E20: 96.9 | F20: 10 | G20: 0 | H20: 106.9 | I20: 0.9742982136 | J20: 97.42982136 | K20: 80.41105263 | L20: 0 | M20: 0 | N20: 80.41105263 | O20: 0.8834995908 | P20: 88.34995908 | Q20: 100 | R20: 0 | S20: 0 | T20: 100 | U20: 0.8976660682 | V20: 89.76660682 | W20: 90.30759631 | X20: 18
A21: 19 | B21: 2021215355 | C21: 郭佳鹏 | D21: 工艺专硕 | E21: 97.04 | F21: 0 | G21: 0 | H21: 97.04 | I21: 0.8844331024 | J21: 88.44331024 | K21: 82.29563492 | L21: 0 | M21: 0 | N21: 82.29563492 | O21: 0.9042060438 | P21: 90.42060438 | Q21: 100 | R21: 0 | S21: 0 | T21: 100 | U21: 0.8976660682 | V21: 89.76660682 | W21: 89.9597458 | X21: 19
A22: 20 | B22: 2021215309 | C22: 刘永高 | D22: 工艺专硕 | E22: 96.8 | F22: 0 | G22: 0 | H22: 96.8 | I22: 0.8822457164 | J22: 88.22457164 | K22: 82.32421053 | L22: 0 | M22: 0 | N22: 82.32421053 | O22: 0.9045200123 | P22: 90.45200123 | Q22: 100 | R22: 0 | S22: 0 | T22: 100 | U22: 0.8976660682 | V22: 89.76660682 | W22: 89.93797587 | X22: 20
A23: 21 | B23: 2021215335 | C23: 陈胜超 | D23: 工艺专硕 | E23: 96.94 | F23: 0.5 | G23: 0 | H23: 97.44 | I23: 0.8880787459 | J23: 88.80787459 | K23: 82.03926136 | L23: 0 | M23: 0 | N23: 82.03926136 | O23: 0.9013891931 | P23: 90.13891931 | Q23: 100 | R23: 0 | S23: 0 | T23: 100 | U23: 0.8976660682 | V23: 89.76660682 | W23: 89.83547911 | X23: 21
A24: 22 | B24: 2021215352 | C24: 江志虎 | D24: 工艺专硕 | E24: 97 | F24: 0.5 | G24: 0 | H24: 97.5 | I24: 0.8886255924 | J24: 88.86255924 | K24: 81.97588235 | L24: 0 | M24: 0 | N24: 81.97588235 | O24: 0.9006928295 | P24: 90.06928295 | Q24: 100 | R24: 0 | S24: 0 | T24: 100 | U24: 0.8976660682 | V24: 89.76660682 | W24: 89.79767059 | X24: 22
A25: 23 | B25: 2021215365 | C25: 王琪 | D25: 工艺专硕 | E25: 96.84 | F25: 2 | G25: 0 | H25: 98.84 | I25: 0.900838498 | J25: 90.0838498 | K25: 81.165 | L25: 0 | M25: 0 | N25: 81.165 | O25: 0.8917834295 | P25: 89.17834295 | Q25: 100 | R25: 0 | S25: 0 | T25: 100 | U25: 0.8976660682 | V25: 89.76660682 | W25: 89.41827071 | X25: 23
A26: 24 | B26: 2021215314 | C26: 熊传煌 | D26: 工艺专硕 | E26: 96.48 | F26: 1 | G26: 0 | H26: 97.48 | I26: 0.8884433102 | J26: 88.84433102 | K26: 80.6 | L26: 0 | M26: 0 | N26: 80.6 | O26: 0.8855756104 | P26: 88.55756104 | Q26: 100 | R26: 0 | S26: 0 | T26: 100 | U26: 0.8976660682 | V26: 89.76660682 | W26: 88.73581962 | X26: 24
A27: 25 | B27: 2021215372 | C27: 宋良宇 | D27: 工艺专硕 | E27: 97 | F27: 0 | G27: 0 | H27: 97 | I27: 0.8840685381 | J27: 88.40685381 | K27: 80.33 | L27: 0 | M27: 0 | N27: 80.33 | O27: 0.882609042 | P27: 88.2609042 | Q27: 100 | R27: 0 | S27: 0 | T27: 100 | U27: 0.8976660682 | V27: 89.76660682 | W27: 88.44066438 | X27: 25
A28: 26 | B28: 2021215317 | C28: 颜晓航 | D28: 工艺专硕 | E28: 96.72 | F28: 3 | G28: 0 | H28: 99.72 | I28: 0.9088589136 | J28: 90.88589136 | K28: 78.92691176 | L28: 0 | M28: 0 | N28: 78.92691176 | O28: 0.867192904 | P28: 86.7192904 | Q28: 100 | R28: 0 | S28: 0 | T28: 100 | U28: 0.8976660682 | V28: 89.76660682 | W28: 87.85734224 | X28: 26
A29: 27 | B29: 2021215304 | C29: 宋艳新 | D29: 工艺专硕 | E29: 96.6 | F29: 4 | G29: 0 | H29: 100.6 | I29: 0.9168793292 | J29: 91.68793292 | K29: 78.30039216 | L29: 0 | M29: 0 | N29: 78.30039216 | O29: 0.8603091511 | P29: 86.03091511 | Q29: 100 | R29: 0 | S29: 0 | T29: 100 | U29: 0.8976660682 | V29: 89.76660682 | W29: 87.53588784 | X29: 27
A30: 28 | B30: 2021215364 | C30: 杜吉超 | D30: 工艺专硕 | E30: 96.84 | F30: 3 | G30: 0 | H30: 99.84 | I30: 0.9099526066 | J30: 90.99526066 | K30: 77.8785 | L30: 0 | M30: 0 | N30: 77.8785 | O30: 0.8556736994 | P30: 85.56736994 | Q30: 100 | R30: 0 | S30: 0 | T30: 100 | U30: 0.8976660682 | V30: 89.76660682 | W30: 87.07287178 | X30: 28
A31: 29 | B31: 2021215378 | C31: 陈霆甲 | D31: 工艺专硕 | E31: 97.18 | F31: 4 | G31: 0 | H31: 101.18 | I31: 0.9221655122 | J31: 92.21655122 | K31: 77.42285714 | L31: 0 | M31: 0 | N31: 77.42285714 | O31: 0.850667419 | P31: 85.0667419 | Q31: 100 | R31: 0 | S31: 0 | T31: 100 | U31: 0.8976660682 | V31: 89.76660682 | W31: 86.96669026 | X31: 29
A32: 30 | B32: 2021215351 | C32: 张蓝仪 | D32: 工艺专硕 | E32: 96.82 | F32: 1.5 | G32: 0 | H32: 98.32 | I32: 0.8960991615 | J32: 89.60991615 | K32: 77.15220588 | L32: 0 | M32: 0 | N32: 77.15220588 | O32: 0.847693695 | P32: 84.7693695 | Q32: 100 | R32: 0 | S32: 0 | T32: 100 | U32: 0.8976660682 | V32: 89.76660682 | W32: 86.23720256 | X32: 30
A33: 31 | B33: 2021215379 | C33: 孙晓旭 | D33: 工艺专硕 | E33: 97.3 | F33: 4 | G33: 0 | H33: 101.3 | I33: 0.9232592052 | J33: 92.32592052 | K33: 75.94310924 | L33: 0 | M33: 0 | N33: 75.94310924 | O33: 0.8344089991 | P33: 83.44089991 | Q33: 100 | R33: 0 | S33: 0 | T33: 100 | U33: 0.8976660682 | V33: 89.76660682 | W33: 85.85047472 | X33: 31
A34: 32 | B34: 2021215338 | C34: 马延明 | D34: 工艺专硕 | E34: 96.56 | F34: 4 | G34: 0 | H34: 100.56 | I34: 0.9165147649 | J34: 91.65147649 | K34: 76.10111111 | L34: 0 | M34: 0 | N34: 76.10111111 | O34: 0.8361450115 | P34: 83.61450115 | Q34: 100 | R34: 0 | S34: 0 | T34: 100 | U34: 0.8976660682 | V34: 89.76660682 | W34: 85.83710678 | X34: 32
A35: 33 | B35: 2021215377 | C35: 张继德 | D35: 工艺专硕 | E35: 97.22 | F35: 7 | G35: 0 | H35: 104.22 | I35: 0.9498724025 | J35: 94.98724025 | K35: 75.12708824 | L35: 0 | M35: 0 | N35: 75.12708824 | O35: 0.8254431392 | P35: 82.54431392 | Q35: 100 | R35: 0 | S35: 0 | T35: 100 | U35: 0.8976660682 | V35: 89.76660682 | W35: 85.75512848 | X35: 33
A36: 34 | B36: 2021215376 | C36: 杨川 | D36: 工艺专硕 | E36: 96.84 | F36: 3 | G36: 0 | H36: 99.84 | I36: 0.9099526066 | J36: 90.99526066 | K36: 75.22191176 | L36: 0 | M36: 0 | N36: 75.22191176 | O36: 0.8264849929 | P36: 82.64849929 | Q36: 100 | R36: 0 | S36: 0 | T36: 100 | U36: 0.8976660682 | V36: 89.76660682 | W36: 85.02966232 | X36: 34
A37: 35 | B37: 2021215310 | C37: 任晓聪 | D37: 工艺专硕 | E37: 96.94 | F37: 0 | G37: 0 | H37: 96.94 | I37: 0.8835216916 | J37: 88.35216916 | K37: 73.94194118 | L37: 0 | M37: 0 | N37: 73.94194118 | O37: 0.8124215843 | P37: 81.24215843 | Q37: 100 | R37: 7 | S37: 0 | T37: 107 | U37: 0.960502693 | V37: 96.0502693 | W37: 84.14497166 | X37: 35

Sheet 催化学硕
A1: 序号 | B1: 学号 | C1: 姓名 | D1: 方向 | E1: 德育成绩 | K1: 智育成绩 | Q1: 文体成绩 | W1: 总分 | X1: 排名
E2: 基础分 | F2: 奖励分 | G2: 惩罚分 | H2: 个人德育总分 | I2: 个人德育总分/基准 | J2: 德育总成绩 | K2: 基础分 | L2: 奖励分 | M2: 惩罚分 | N2: 个人智育总分 | O2: 个人智育总分/基准 | P2: 智育总成绩 | Q2: 基本分 | R2: 奖励分 | S2: 惩罚分 | T2: 个人文体总分 | U2: 个人文体总分/基准 | V2: 文体总成绩
A3: 1 | B3: 2021210503 | C3: 谷敏 | D3: 催化学硕 | E3: 95.99354839 | F3: 7.6 | G3: 0 | H3: 103.5935484 | I3: =H3/$H$3 -> 1 | J3: 100 | K3: 85.53 | L3: 0 | M3: 0 | N3: 85.53 | O3: =N3/$N$11 -> 1.015960839 | P3: 97.01290383 | Q3: 100 | R3: 7 | S3: 0 | T3: 107 | U3: =T3/$T$3 -> 1 | V3: 100 | W3: 97.90903268 | X3: 1
A4: 2 | B4: 2021210523 | C4: 邴研 | D4: 催化学硕 | E4: 95.90322581 | F4: 0 | G4: 0 | H4: 95.90322581 | I4: 0.9257644641 | J4: 92.57644641 | K4: 88.16352941 | L4: 0 | M4: 0 | N4: 88.16352941 | O4: 1.047242994 | P4: 100 | Q4: 100 | R4: 0 | S4: 0 | T4: 100 | U4: 0.9345794393 | V4: 93.45794393 | W4: 97.86108368 | X4: 2
A5: 3 | B5: 2021210531 | C5: 贾鑫 | D5: 催化学硕 | E5: 95.88064516 | F5: 2.5 | G5: 0 | H5: 98.38064516 | I5: 0.9496792676 | J5: 94.96792676 | K5: 86.49235294 | L5: 0.9571428571 | M5: 0 | N5: 87.4494958 | O5: 1.038761407 | P5: 99.19010319 | Q5: 100 | R5: 0 | S5: 0 | T5: 100 | U5: 0.9345794393 | V5: 93.45794393 | W5: 97.77245198 | X5: 3
A6: 4 | B6: 2021210517 | C6: 臧宏扬 | D6: 催化学硕 | E6: 95.85806452 | F6: 7.1 | G6: 0 | H6: 102.9580645 | I6: 0.9938656038 | J6: 99.38656038 | K6: 85.74166667 | L6: 0 | M6: 0 | N6: 85.74166667 | O6: 1.018475103 | P6: 97.25298799 | Q6: 100 | R6: 0 | S6: 0 | T6: 100 | U6: 0.9345794393 | V6: 93.45794393 | W6: 97.30019806 | X6: 4
A7: 5 | B7: 2021210524 | C7: 黄柯文 | D7: 催化学硕 | E7: 96.19677419 | F7: 4 | G7: 0 | H7: 100.1967742 | I7: 0.9672105624 | J7: 96.72105624 | K7: 85.72235294 | L7: 0 | M7: 0 | N7: 85.72235294 | O7: 1.018245687 | P7: 97.23108128 | Q7: 100 | R7: 0 | S7: 0 | T7: 100 | U7: 0.9345794393 | V7: 93.45794393 | W7: 96.75176254 | X7: 5
A8: 6 | B8: 2021210572 | C8: 姜珊 | D8: 催化学硕 | E8: 96.19677419 | F8: 7.3 | G8: 0 | H8: 103.4967742 | I8: 0.999065828 | J8: 99.9065828 | K8: 84.02285714 | L8: 0 | M8: 0 | N8: 84.02285714 | O8: 0.9980583704 | P8: 95.30341821 | Q8: 100 | R8: 0 | S8: 0 | T8: 100 | U8: 0.9345794393 | V8: 93.45794393 | W8: 96.0395037 | X8: 6
A9: 7 | B9: 2021210603 | C9: 李声笛 | D9: 催化学硕 | E9: 95.76774194 | F9: 0 | G9: 0 | H9: 95.76774194 | I9: 0.9244566233 | J9: 92.44566233 | K9: 85.675 | L9: 0 | M9: 0 | N9: 85.675 | O9: 1.017683209 | P9: 97.17737093 | Q9: 100 | R9: 0 | S9: 0 | T9: 100 | U9: 0.9345794393 | V9: 93.45794393 | W9: 95.85908651 | X9: 7
A10: 8 | B10: 2021210610 | C10: 吴家琪 | D10: 催化学硕 | E10: 95.81290323 | F10: 0 | G10: 0 | H10: 95.81290323 | I10: 0.9248925702 | J10: 92.48925702 | K10: 85.40333333 | L10: 0 | M10: 0 | N10: 85.40333333 | O10: 1.01445624 | P10: 96.86923142 | Q10: 100 | R10: 0 | S10: 0 | T10: 100 | U10: 0.9345794393 | V10: 93.45794393 | W10: 95.65210779 | X10: 8
A11: 9 | B11: 2021210528 | C11: 孙成蓥 | D11: 催化学硕 | E11: 95.99354839 | F11: 3 | G11: 0 | H11: 98.99354839 | I11: 0.9555956904 | J11: 95.55956904 | K11: 84.18631579 | L11: 0 | M11: 0 | N11: 84.18631579 | O11: 1 | P11: 95.48882214 | Q11: 100 | R11: 0 | S11: 0 | T11: 100 | U11: 0.9345794393 | V11: 93.45794393 | W11: 95.2998837 | X11: 9
A12: 10 | B12: 2021210542 | C12: 周宜林 | D12: 催化学硕 | E12: 95.99354839 | F12: 0 | G12: 0 | H12: 95.99354839 | I12: 0.926636358 | J12: 92.6636358 | K12: 84.45625 | L12: 0 | M12: 0 | N12: 84.45625 | O12: 1.003206391 | P12: 95.7949966 | Q12: 100 | R12: 3.333333333 | S12: 0 | T12: 103.3333333 | U12: 0.9657320872 | V12: 96.57320872 | W12: 95.24654565 | X12: 10
A13: 11 | B13: 2021210573 | C13: 李瑞轩 | D13: 催化学硕 | E13: 96.03870968 | F13: 0 | G13: 0 | H13: 96.03870968 | I13: 0.9270723049 | J13: 92.70723049 | K13: 84.57767857 | L13: 0 | M13: 0 | N13: 84.57767857 | O13: 1.00464877 | P13: 95.93272767 | Q13: 100 | R13: 0 | S13: 0 | T13: 100 | U13: 0.9345794393 | V13: 93.45794393 | W13: 95.04014986 | X13: 11
A14: 12 | B14: 2021210549 | C14: 黄海洋 | D14: 催化学硕 | E14: 96.06129032 | F14: 4 | G14: 0 | H14: 100.0612903 | I14: 0.9659027216 | J14: 96.59027216 | K14: 83.33433333 | L14: 0 | M14: 0 | N14: 83.33433333 | O14: 0.9898797988 | P14: 94.52245604 | Q14: 100 | R14: 0 | S14: 0 | T14: 100 | U14: 0.9345794393 | V14: 93.45794393 | W14: 94.82956805 | X14: 12
A15: 13 | B15: 2021210604 | C15: 张铸文 | D15: 催化学硕 | E15: 95.90322581 | F15: 0 | G15: 0 | H15: 95.90322581 | I15: 0.9257644641 | J15: 92.57644641 | K15: 84.19333333 | L15: 0 | M15: 0 | N15: 84.19333333 | O15: 1.000083357 | P15: 95.49678183 | Q15: 100 | R15: 0 | S15: 0 | T15: 100 | U15: 0.9345794393 | V15: 93.45794393 | W15: 94.70883095 | X15: 13
A16: 14 | B16: 2021210514 | C16: 王琦 | D16: 催化学硕 | E16: 95.90322581 | F16: 6 | G16: 0 | H16: 101.9032258 | I16: 0.9836831289 | J16: 98.36831289 | K16: 82.51888889 | L16: 0 | M16: 0 | N16: 82.51888889 | O16: 0.9801936112 | P16: 93.5975334 | Q16: 100 | R16: 0 | S16: 0 | T16: 100 | U16: 0.9345794393 | V16: 93.45794393 | W16: 94.53773035 | X16: 14
A17: 15 | B17: 2021210513 | C17: 冯博 | D17: 催化学硕 | E17: 95.74516129 | F17: 0 | G17: 0 | H17: 95.74516129 | I17: 0.9242386498 | J17: 92.42386498 | K17: 83.68375 | L17: 0 | M17: 0 | N17: 83.68375 | O17: 0.994030315 | P17: 94.91878395 | Q17: 100 | R17: 0 | S17: 0 | T17: 100 | U17: 0.9345794393 | V17: 93.45794393 | W17: 94.27371615 | X17: 15
A18: 16 | B18: 2021210518 | C18: 张哲 | D18: 催化学硕 | E18: 96.24193548 | F18: 6.6 | G18: 0 | H18: 102.8419355 | I18: 0.9927445974 | J18: 99.27445974 | K18: 81.20444444 | L18: 0 | M18: 0 | N18: 81.20444444 | O18: 0.9645800946 | P18: 92.10661709 | Q18: 100 | R18: 0 | S18: 0 | T18: 100 | U18: 0.9345794393 | V18: 93.45794393 | W18: 93.6753183 | X18: 16
A19: 17 | B19: 2021210574 | C19: 牛慕凡 | D19: 催化学硕 | E19: 95.97096774 | F19: 6.8 | G19: 0 | H19: 102.7709677 | I19: 0.9920595379 | J19: 99.20595379 | K19: 80.6 | L19: 0 | M19: 0 | N19: 80.6 | O19: 0.9574002526 | P19: 91.42102243 | Q19: 100 | R19: 0 | S19: 0 | T19: 100 | U19: 0.9345794393 | V19: 93.45794393 | W19: 93.18170085 | X19: 17
A20: 18 | B20: 2021210631 | C20: 袁兆朔 | D20: 催化学硕 | E20: 95.88064516 | F20: 4.6 | G20: 0 | H20: 100.4806452 | I20: 0.9699508003 | J20: 96.99508003 | K20: 80.79210526 | L20: 0 | M20: 0 | N20: 80.79210526 | O20: 0.9596821586 | P20: 91.63891895 | Q20: 100 | R20: 0 | S20: 0 | T20: 100 | U20: 0.9345794393 | V20: 93.45794393 | W20: 92.89205367 | X20: 18
A21: 19 | B21: 2021210532 | C21: 刘璨 | D21: 催化学硕 | E21: 95.97096774 | F21: 5.6 | G21: 0 | H21: 101.5709677 | I21: 0.9804758049 | J21: 98.04758049 | K21: 80.10529412 | L21: 0.3571428571 | M21: 0 | N21: 80.46243697 | O21: 0.9557662219 | P21: 91.26499077 | Q21: 100 | R21: 0 | S21: 0 | T21: 100 | U21: 0.9345794393 | V21: 93.45794393 | W21: 92.84080403 | X21: 19
A22: 20 | B22: 2021210547 | C22: 杨丽 | D22: 催化学硕 | E22: 96.03870968 | F22: 0 | G22: 0 | H22: 96.03870968 | I22: 0.9270723049 | J22: 92.70723049 | K22: 81.07194444 | L22: 0 | M22: 0 | N22: 81.07194444 | O22: 0.9630062046 | P22: 91.95632819 | Q22: 100 | R22: 0 | S22: 0 | T22: 100 | U22: 0.9345794393 | V22: 93.45794393 | W22: 92.25667022 | X22: 20
A23: 21 | B23: 2021210505 | C23: 王浩 | D23: 催化学硕 | E23: 95.79032258 | F23: 0 | G23: 0 | H23: 95.79032258 | I23: 0.9246745967 | J23: 92.46745967 | K23: 80.8294 | L23: 0 | M23: 0 | N23: 80.8294 | O23: 0.960125161 | P23: 91.68122073 | Q23: 100 | R23: 0 | S23: 0 | T23: 100 | U23: 0.9345794393 | V23: 93.45794393 | W23: 92.01614084 | X23: 21
A24: 22 | B24: 2021210569 | C24: 赵少健 | D24: 催化学硕 | E24: 96.08387097 | F24: 0 | G24: 0 | H24: 96.08387097 | I24: 0.9275082519 | J24: 92.75082519 | K24: 80.70674603 | L24: 0 | M24: 0 | N24: 80.70674603 | O24: 0.9586682262 | P24: 91.54209975 | Q24: 100 | R24: 0 | S24: 0 | T24: 100 | U24: 0.9345794393 | V24: 93.45794393 | W24: 91.97542925 | X24: 22
A25: 23 | B25: 2021210548 | C25: 程明健 | D25: 催化学硕 | E25: 96.06129032 | F25: 0 | G25: 0 | H25: 96.06129032 | I25: 0.9272902784 | J25: 92.72902784 | K25: 80.31578947 | L25: 0 | M25: 0 | N25: 80.31578947 | O25: 0.954024282 | P25: 91.09865498 | Q25: 100 | R25: 0 | S25: 0 | T25: 100 | U25: 0.9345794393 | V25: 93.45794393 | W25: 91.66065844 | X25: 23
A26: 24 | B26: 2021210568 | C26: 刘尚书 | D26: 催化学硕 | E26: 95.92580645 | F26: 2 | G26: 0 | H26: 97.92580645 | I26: 0.9452886592 | J26: 94.52886592 | K26: 79.57777778 | L26: 0 | M26: 0 | N26: 79.57777778 | O26: 0.9452578727 | P26: 90.26156089 | Q26: 100 | R26: 0 | S26: 0 | T26: 100 | U26: 0.9345794393 | V26: 93.45794393 | W26: 91.4346602 | X26: 24
A27: 25 | B27: 2021210550 | C27: 孟岩 | D27: 催化学硕 | E27: 95.63225806 | F27: 4.6 | G27: 0 | H27: 100.2322581 | I27: 0.9675530921 | J27: 96.75530921 | K27: 78.35142857 | L27: 0 | M27: 0 | N27: 78.35142857 | O27: 0.9306907879 | P27: 88.87056711 | Q27: 100 | R27: 0 | S27: 0 | T27: 100 | U27: 0.9345794393 | V27: 93.45794393 | W27: 90.90625321 | X27: 25
A28: 26 | B28: 2021210512 | C28: 胡溢玚 | D28: 催化学硕 | E28: 96.06129032 | F28: 0 | G28: 0 | H28: 96.06129032 | I28: 0.9272902784 | J28: 92.72902784 | K28: 78.945 | L28: 0.3571428571 | M28: 0 | N28: 79.30214286 | O28: 0.9419837668 | P28: 89.94892036 | Q28: 100 | R28: 0 | S28: 0 | T28: 100 | U28: 0.9345794393 | V28: 93.45794393 | W28: 90.85584421 | X28: 26
A29: 27 | B29: 2021210643 | C29: 江蒙伟 | D29: 催化学硕 | E29: 95.97096774 | F29: 0 | G29: 0 | H29: 97.97096774 | I29: 0.9457246061 | J29: 94.57246061 | K29: 77.585 | L29: 0 | M29: 0 | N29: 77.585 | O29: 0.9215868312 | P29: 88.00124101 | Q29: 100 | R29: 0 | S29: 0 | T29: 100 | U29: 0.9345794393 | V29: 93.45794393 | W29: 89.86115522 | X29: 27
A30: 28 | B30: 2021210504 | C30: 官宇 | D30: 催化学硕 | E30: 95.88064516 | F30: 0 | G30: 0 | H30: 95.88064516 | I30: 0.9255464906 | J30: 92.55464906 | K30: 77.6559 | L30: 0 | M30: 0 | N30: 77.6559 | O30: 0.9224290108 | P30: 88.08165975 | Q30: 100 | R30: 0 | S30: 0 | T30: 100 | U30: 0.9345794393 | V30: 93.45794393 | W30: 89.51388603 | X30: 28
A31: 29 | B31: 2021210541 | C31: 赵春晓 | D31: 催化学硕 | E31: 95.9483871 | F31: 4 | G31: 0 | H31: 99.9483871 | I31: 0.9648128542 | J31: 96.48128542 | K31: 76.66125 | L31: 0 | M31: 0 | N31: 76.66125 | O31: 0.9106141453 | P31: 86.95347216 | Q31: 100 | R31: 0 | S31: 0 | T31: 100 | U31: 0.9345794393 | V31: 93.45794393 | W31: 89.50948199 | X31: 29
A32: 30 | B32: 2021210602 | C32: 海小祥 | D32: 催化学硕 | E32: 95.81290323 | F32: 4.6 | G32: 0 | H32: 100.4129032 | I32: 0.9692968799 | J32: 96.92968799 | K32: 76.44603175 | L32: 0 | M32: 0 | N32: 76.44603175 | O32: 0.9080576936 | P32: 86.70935959 | Q32: 100 | R32: 0 | S32: 0 | T32: 100 | U32: 0.9345794393 | V32: 93.45794393 | W32: 89.4282837 | X32: 30
A33: 31 | B33: 2021210546 | C33: 杜卫博 | D33: 催化学硕 | E33: 96.03870968 | F33: 3 | G33: 0 | H33: 99.03870968 | I33: 0.9560316373 | J33: 95.60316373 | K33: 76.60694444 | L33: 0 | M33: 0 | N33: 76.60694444 | O33: 0.9099690814 | P33: 86.89187576 | Q33: 100 | R33: 0 | S33: 0 | T33: 100 | U33: 0.9345794393 | V33: 93.45794393 | W33: 89.29074017 | X33: 31

Sheet 催化专硕
A1: 序号 | B1: 学号 | C1: 姓名 | D1: 方向 | E1: 德育成绩 | K1: 智育成绩 | Q1: 文体成绩 | W1: 总分 | X1: 排名
E2: 基础分 | F2: 奖励分 | G2: 惩罚分 | H2: 个人德育总分 | I2: 个人德育总分/基准 | J2: 德育总成绩 | K2: 基础分 | L2: 奖励分 | M2: 惩罚分 | N2: 个人智育总分 | O2: 个人智育总分/基准 | P2: 智育总成绩 | Q2: 基本分 | R2: 奖励分 | S2: 惩罚分 | T2: 个人文体总分 | U2: 个人文体总分/基准 | V2: 文体总成绩
A3: 1 | B3: 2021215312 | C3: 钟姝鑫 | D3: 催化专硕 | E3: 98.07317073 | F3: 7.6 | G3: 0 | H3: 105.6731707 | I3: 0.984793727 | J3: 98.4793727 | K3: 88.4825 | L3: 0 | M3: 0 | N3: 88.4825 | O3: 1 | P3: 100 | Q3: 100 | R3: 0 | S3: 0 | T3: 100 | U3: 0.933997509 | V3: 93.3997509 | W3: 99.03584963 | X3: 1
A4: 2 | B4: 2021215325 | C4: 沈红茹 | D4: 催化专硕 | E4: 98.00487805 | F4: 9.3 | G4: 0 | H4: 107.304878 | I4: 1 | J4: 100 | K4: 87.11333333 | L4: 0 | M4: 0 | N4: 87.11333333 | O4: 0.9845261304 | P4: 98.45261304 | Q4: 100 | R4: 7.066666667 | S4: 0 | T4: 107.0666667 | U4: 0.9999999997 | V4: 99.99999997 | W4: 98.91682913 | X4: 2
A5: 3 | B5: 2021215326 | C5: 甄力研 | D5: 催化专硕 | E5: 98.03902439 | F5: 0 | G5: 0 | H5: 98.03902439 | I5: 0.9136492787 | J5: 91.36492787 | K5: 86.73220588 | L5: 0 | M5: 0 | N5: 86.73220588 | O5: 0.9802187538 | P5: 98.02187538 | Q5: 100 | R5: 0 | S5: 0 | T5: 100 | U5: 0.933997509 | V5: 93.3997509 | W5: 96.22827343 | X5: 3
A6: 4 | B6: 2021215342 | C6: 张润程 | D6: 催化专硕 | E6: 98.07317073 | F6: 1 | G6: 0 | H6: 99.07317073 | I6: 0.9232867375 | J6: 92.32867375 | K6: 85.60642045 | L6: 0 | M6: 0 | N6: 85.60642045 | O6: 0.9674954986 | P6: 96.74954986 | Q6: 100 | R6: 0 | S6: 0 | T6: 100 | U6: 0.933997509 | V6: 93.3997509 | W6: 95.53039474 | X6: 4
A7: 5 | B7: 2021215374 | C7: 白玉华 | D7: 催化专硕 | E7: 97.93658537 | F7: 6 | G7: 0 | H7: 103.9365854 | I7: 0.9686100698 | J7: 96.86100698 | K7: 83.54431373 | L7: 0 | M7: 0 | N7: 83.54431373 | O7: 0.9441902492 | P7: 94.41902492 | Q7: 100 | R7: 2 | S7: 0 | T7: 102 | U7: 0.9526774592 | V7: 95.26774592 | W7: 94.99229343 | X7: 5
A8: 6 | B8: 2021215324 | C8: 张祎 | D8: 催化专硕 | E8: 97.8 | F8: 4.8 | G8: 0 | H8: 102.6 | I8: 0.9561541089 | J8: 95.61541089 | K8: 83.76857143 | L8: 0 | M8: 0 | N8: 83.76857143 | O8: 0.9467247357 | P8: 94.67247357 | Q8: 100 | R8: 2 | S8: 0 | T8: 102 | U8: 0.9526774592 | V8: 95.26774592 | W8: 94.92058827 | X8: 6
A9: 7 | B9: 2021215319 | C9: 王沼桂 | D9: 催化专硕 | E9: 97.93658537 | F9: 1 | G9: 0 | H9: 98.93658537 | I9: 0.9220138656 | J9: 92.20138656 | K9: 84.536125 | L9: 0 | M9: 0 | N9: 84.536125 | O9: 0.9553993728 | P9: 95.53993728 | Q9: 100 | R9: 2 | S9: 0 | T9: 102 | U9: 0.9526774592 | V9: 95.26774592 | W9: 94.845008 | X9: 7
A10: 8 | B10: 2021215316 | C10: 辛露伟 | D10: 催化专硕 | E10: 98.0902439 | F10: 7.8 | G10: 0 | H10: 105.8902439 | I10: 0.9868166842 | J10: 98.68166842 | K10: 81.81735294 | L10: 0 | M10: 0 | N10: 81.81735294 | O10: 0.9246727086 | P10: 92.46727086 | Q10: 100 | R10: 4.666666667 | S10: 0 | T10: 104.6666667 | U10: 0.9775840595 | V10: 97.75840595 | W10: 94.23926388 | X10: 8
A11: 9 | B11: 2021215357 | C11: 范梦凡 | D11: 催化专硕 | E11: 98.02195122 | F11: 4 | G11: 0 | H11: 102.0219512 | I11: 0.9507671331 | J11: 95.07671331 | K11: 82.23380952 | L11: 0 | M11: 0 | N11: 82.23380952 | O11: 0.9293793634 | P11: 92.93793634 | Q11: 100 | R11: 5.6 | S11: 0 | T11: 105.6 | U11: 0.9863013696 | V11: 98.63013696 | W11: 93.9349118 | X11: 9
A12: 10 | B12: 2021215306 | C12: 侯奕康 | D12: 催化专硕 | E12: 97.9195122 | F12: 0 | G12: 0 | H12: 97.9195122 | I12: 0.9125355158 | J12: 91.25355158 | K12: 83.24666667 | L12: 0 | M12: 0 | N12: 83.24666667 | O12: 0.9408263404 | P12: 94.08263404 | Q12: 100 | R12: 0 | S12: 0 | T12: 100 | U12: 0.933997509 | V12: 93.3997509 | W12: 93.44852924 | X12: 10
A13: 11 | B13: 2021215369 | C13: 徐彤 | D13: 催化专硕 | E13: 97.86829268 | F13: 4.5 | G13: 0 | H13: 102.3682927 | I13: 0.9539947726 | J13: 95.39947726 | K13: 81.35686275 | L13: 0 | M13: 0 | N13: 81.35686275 | O13: 0.9194684005 | P13: 91.94684005 | Q13: 100 | R13: 0 | S13: 0 | T13: 100 | U13: 0.933997509 | V13: 93.3997509 | W13: 92.78265858 | X13: 11
A14: 12 | B14: 2021215360 | C14: 胡敏 | D14: 催化专硕 | E14: 97.97073171 | F14: 4 | G14: 0 | H14: 101.9707317 | I14: 0.9502898061 | J14: 95.02898061 | K14: 79.64426471 | L14: 0 | M14: 0 | N14: 79.64426471 | O14: 0.9001131829 | P14: 90.01131829 | Q14: 100 | R14: 4.666666667 | S14: 0 | T14: 104.6666667 | U14: 0.9775840595 | V14: 97.75840595 | W14: 91.78955952 | X14: 12
A15: 13 | B15: 2021215375 | C15: 乐小莉 | D15: 催化专硕 | E15: 97.98780488 | F15: 5.5 | G15: 0 | H15: 103.4878049 | I15: 0.9644277763 | J15: 96.44277763 | K15: 79.28705882 | L15: 0 | M15: 0 | N15: 79.28705882 | O15: 0.89607616 | P15: 89.607616 | Q15: 100 | R15: 0 | S15: 0 | T15: 100 | U15: 0.933997509 | V15: 93.3997509 | W15: 91.35386181 | X15: 13
A16: 14 | B16: 2021215339 | C16: 彭博 | D16: 催化专硕 | E16: 97.9195122 | F16: 4.6 | G16: 0 | H16: 102.5195122 | I16: 0.9554040236 | J16: 95.54040236 | K16: 79.36862745 | L16: 0 | M16: 0 | N16: 79.36862745 | O16: 0.8969980217 | P16: 89.69980217 | Q16: 100 | R16: 0 | S16: 0 | T16: 100 | U16: 0.933997509 | V16: 93.3997509 | W16: 91.23791708 | X16: 14
A17: 15 | B17: 2021215341 | C17: 苏良健 | D17: 催化专硕 | E17: 97.93658537 | F17: 0 | G17: 0 | H17: 97.93658537 | I17: 0.9126946248 | J17: 91.26946248 | K17: 80.37 | L17: 0 | M17: 0 | N17: 80.37 | O17: 0.9083152036 | P17: 90.83152036 | Q17: 100 | R17: 0 | S17: 0 | T17: 100 | U17: 0.933997509 | V17: 93.3997509 | W17: 91.17593184 | X17: 15
A18: 16 | B18: 2021215323 | C18: 陈铭宇 | D18: 催化专硕 | E18: 98.07317073 | F18: 0 | G18: 0 | H18: 98.07317073 | I18: 0.9139674967 | J18: 91.39674967 | K18: 77.5092437 | L18: 0 | M18: 0 | N18: 77.5092437 | O18: 0.8759838804 | P18: 87.59838804 | Q18: 100 | R18: 0 | S18: 0 | T18: 100 | U18: 0.933997509 | V18: 93.3997509 | W18: 88.93819665 | X18: 16
A19: 17 | B19: 2021215318 | C19: 马亚婷 | D19: 催化专硕 | E19: 98.00487805 | F19: 5.766666667 | G19: 0 | H19: 103.7715447 | I19: 0.9670720162 | J19: 96.70720162 | K19: 76.04625 | L19: 0 | M19: 0 | N19: 76.04625 | O19: 0.8594496087 | P19: 85.94496087 | Q19: 100 | R19: 0 | S19: 0 | T19: 100 | U19: 0.933997509 | V19: 93.3997509 | W19: 88.84288802 | X19: 17
A20: 18 | B20: 2021215315 | C20: 朴宇 | D20: 催化专硕 | E20: 97.98780488 | F20: 0 | G20: 0 | H20: 97.98780488 | I20: 0.9131719518 | J20: 91.31719518 | K20: 72.27529412 | L20: 0 | M20: 0 | N20: 72.27529412 | O20: 0.8168315104 | P20: 81.68315104 | Q20: 100 | R20: 0 | S20: 0 | T20: 100 | U20: 0.933997509 | V20: 93.3997509 | W20: 84.78161985 | X20: 18

Sheet 工程学硕
A1: 序号 | B1: 学号 | C1: 姓名 | D1: 方向 | E1: 德育成绩 | K1: 智育成绩 | Q1: 文体成绩 | W1: 总分 | X1: 排名
E2: 基础分 | F2: 奖励分 | G2: 惩罚分 | H2: 个人德育总分 | I2: 个人德育总分/基准 | J2: 德育总成绩 | K2: 基础分 | L2: 奖励分 | M2: 惩罚分 | N2: 个人智育总分 | O2: 个人智育总分/基准 | P2: 智育总成绩 | Q2: 基础分 | R2: 奖励分 | S2: 惩罚分 | T2: 个人文体总分 | U2: 个人文体总分/基准 | V2: 文体总成绩
A3: 1 | B3: 2021210521 | C3: 贾晓浩 | D3: 工程学硕 | E3: 98.3372093 | F3: 4 | G3: 0 | H3: =E3+F3+G3 -> 102.3372093 | I3: 0.9402777778 | J3: =I3*100 -> 94.02777778 | K3: 86.51 | L3: 14.1 | M3: 0 | N3: =K3+L3+M3 -> 100.61 | O3: =N3/100.61 -> 1 | P3: =O3*100 -> 100 | Q3: 100 | R3: 0 | S3: 0 | T3: =Q3+R3+S3 -> 100 | U3: =T3/115 -> 0.8695652174 | V3: =U3*100 -> 86.95652174 | W3: =J3*0.2+P3*0.7+V3*0.1 -> 97.50120773 | X3: 1
A4: 2 | B4: 2021210501 | C4: 宫汝景 | D4: 工程学硕 | E4: 98.3372093 | F4: 0 | G4: 0 | H4: 98.3372093 | I4: 0.903525641 | J4: 90.3525641 | K4: 93.99 | L4: 0 | M4: 0 | N4: 93.99 | O4: 0.9342013716 | P4: 93.42013716 | Q4: 100 | R4: 0 | S4: 0 | T4: 100 | U4: 0.8695652174 | V4: 86.95652174 | W4: 92.16026101 | X4: 2
A5: 3 | B5: 2021210553 | C5: 李梦 | D5: 工程学硕 | E5: 98.25581395 | F5: 7.5 | G5: 0 | H5: 105.755814 | I5: 0.9716880342 | J5: 97.16880342 | K5: 90.45 | L5: 1 | M5: 0 | N5: 91.45 | O5: 0.9089553722 | P5: 90.89553722 | Q5: 100 | R5: 2 | S5: 0 | T5: 102 | U5: 0.8869565217 | V5: 88.69565217 | W5: 91.93020196 | X5: 3
A6: 4 | B6: 2021210598 | C6: 朱悦 | D6: 工程学硕 | E6: 98.36976744 | F6: 8 | G6: 0 | H6: 106.3697674 | I6: 0.9773290598 | J6: 97.73290598 | K6: 90.17 | L6: 0 | M6: 0 | N6: 90.17 | O6: 0.8962329788 | P6: 89.62329788 | Q6: 100 | R6: 0 | S6: 0 | T6: 100 | U6: 0.8695652174 | V6: 86.95652174 | W6: 90.97854189 | X6: 4
A7: 5 | B7: 2021210635 | C7: 黄丁丁 | D7: 工程学硕 | E7: 98.3372093 | F7: 10.5 | G7: 0 | H7: 108.8372093 | I7: 1 | J7: 100 | K7: 89.49 | L7: 0 | M7: 0 | N7: 89.49 | O7: 0.8894742073 | P7: 88.94742073 | Q7: 100 | R7: 0 | S7: 0 | T7: 100 | U7: 0.8695652174 | V7: 86.95652174 | W7: 90.95884669 | X7: 5
A8: 6 | B8: 2021210508 | C8: 王明 | D8: 工程学硕 | E8: 98.1255814 | F8: 2 | G8: 0 | H8: 100.1255814 | I8: 0.919957265 | J8: 91.9957265 | K8: 91.27 | L8: 0 | M8: 0 | N8: 91.27 | O8: 0.9071662857 | P8: 90.71662857 | Q8: 100 | R8: 0 | S8: 0 | T8: 100 | U8: 0.8695652174 | V8: 86.95652174 | W8: 90.59643747 | X8: 6
A9: 7 | B9: 2021210636 | C9: 苏涧雯 | D9: 工程学硕 | E9: 98.40232558 | F9: 7.5 | G9: 0 | H9: 105.9023256 | I9: 0.9730341881 | J9: 97.30341881 | K9: 88.53 | L9: 0 | M9: 0 | N9: 88.53 | O9: 0.8799324123 | P9: 87.99324123 | Q9: 100 | R9: 0 | S9: 0 | T9: 100 | U9: 0.8695652174 | V9: 86.95652174 | W9: 89.75160479 | X9: 7
A10: 8 | B10: 2021210539 | C10: 田雪铭 | D10: 工程学硕 | E10: 98.32093023 | F10: 4 | G10: 0 | H10: 102.3209302 | I10: 0.9401282051 | J10: 94.01282051 | K10: 89.21 | L10: 0 | M10: 0 | N10: 89.21 | O10: 0.8866911838 | P10: 88.66911838 | Q10: 100 | R10: 0 | S10: 0 | T10: 100 | U10: 0.8695652174 | V10: 86.95652174 | W10: 89.56659914 | X10: 8
A11: 9 | B11: 2021210587 | C11: 张辉 | D11: 工程学硕 | E11: 98.15813953 | F11: 0 | G11: 0 | H11: 98.15813953 | I11: 0.9018803419 | J11: 90.18803419 | K11: 88.51 | L11: 0 | M11: 0 | N11: 88.51 | O11: 0.8797336249 | P11: 87.97336249 | Q11: 100 | R11: 0 | S11: 0 | T11: 100 | U11: 0.8695652174 | V11: 86.95652174 | W11: 88.31461275 | X11: 9
A12: 10 | B12: 2021210543 | C12: 段锦荣 | D12: 工程学硕 | E12: 98.28837209 | F12: 2 | G12: 0 | H12: 100.2883721 | I12: 0.9214529915 | J12: 92.14529915 | K12: 87.83 | L12: 0 | M12: 0 | N12: 87.83 | O12: 0.8729748534 | P12: 87.29748534 | Q12: 100 | R12: 0 | S12: 0 | T12: 100 | U12: 0.8695652174 | V12: 86.95652174 | W12: 88.23295174 | X12: 10
A13: 11 | B13: 2021210545 | C13: 王雅靖 | D13: 工程学硕 | E13: 98.36976744 | F13: 3.7 | G13: 0 | H13: 102.0697674 | I13: 0.9378205128 | J13: 93.78205128 | K13: 87.24 | L13: 0 | M13: 0 | N13: =K13+L13+M13 -> 87.24 | O13: 0.8671106252 | P13: 86.71106252 | Q13: 100 | R13: 0 | S13: 0 | T13: 100 | U13: 0.8695652174 | V13: 86.95652174 | W13: 88.14980619 | X13: 11
A14: 12 | B14: 2021210605 | C14: 杜洋 | D14: 工程学硕 | E14: 98.41860465 | F14: 5.5 | G14: 0 | H14: 103.9186047 | I14: 0.9548076923 | J14: 95.48076923 | K14: 86.66 | L14: 0 | M14: 0 | N14: 86.66 | O14: 0.8613457907 | P14: 86.13457907 | Q14: 100 | R14: 0 | S14: 0 | T14: 100 | U14: 0.8695652174 | V14: 86.95652174 | W14: 88.08601137 | X14: 12
A15: 13 | B15: 2021210507 | C15: 潘惠媛 | D15: 工程学硕 | E15: 98.32093023 | F15: 1.5 | G15: 0 | H15: 99.82093023 | I15: 0.9171581197 | J15: 91.71581197 | K15: 87.44 | L15: 0 | M15: 0 | N15: 87.44 | O15: 0.8690984992 | P15: 86.90984992 | Q15: 100 | R15: 0 | S15: 0 | T15: 100 | U15: 0.8695652174 | V15: 86.95652174 | W15: 87.87570951 | X15: 13
A16: 14 | B16: 2021210540 | C16: 王国虎 | D16: 工程学硕 | E16: 98.32093023 | F16: 8.55 | G16: 0 | H16: 106.8709302 | I16: 0.9819337607 | J16: 98.19337607 | K16: 85.36 | L16: 0 | M16: 0 | N16: 85.36 | O16: 0.8484246099 | P16: 84.84246099 | Q16: 100 | R16: 0 | S16: 0 | T16: 100 | U16: 0.8695652174 | V16: 86.95652174 | W16: 87.72405008 | X16: 14
A17: 15 | B17: 2021210606 | C17: 汤梦蝶 | D17: 工程学硕 | E17: 98.35348837 | F17: 1.5 | G17: 0 | H17: 99.85348837 | I17: 0.917457265 | J17: 91.7457265 | K17: 86.06 | L17: 0 | M17: 0 | N17: 86.06 | O17: 0.8553821688 | P17: 85.53821688 | Q17: 100 | R17: 2 | S17: 0 | T17: 102 | U17: 0.8869565217 | V17: 88.69565217 | W17: 87.09546233 | X17: 15
A18: 16 | B18: 2021210516 | C18: 石硕 | D18: 工程学硕 | E18: 98.23953488 | F18: 3 | G18: 0 | H18: 101.2395349 | I18: 0.9301923077 | J18: 93.01923077 | K18: 85.41 | L18: 0 | M18: 0 | N18: 85.41 | O18: 0.8489215784 | P18: 84.89215784 | Q18: 100 | R18: 0 | S18: 0 | T18: 100 | U18: 0.8695652174 | V18: 86.95652174 | W18: 86.72400881 | X18: 16
A19: 17 | B19: 2021210533 | C19: 王浩然 | D19: 工程学硕 | E19: 98.22325581 | F19: 8 | G19: 0 | H19: 106.2232558 | I19: 0.975982906 | J19: 97.5982906 | K19: 84.09 | L19: 0 | M19: 0 | N19: 84.09 | O19: 0.8358016102 | P19: 83.58016102 | Q19: 100 | R19: 0 | S19: 0 | T19: 100 | U19: 0.8695652174 | V19: 86.95652174 | W19: 86.72142301 | X19: 17
A20: 18 | B20: 2021210615 | C20: 阴慧敏 | D20: 工程学硕 | E20: 98.32093023 | F20: 0.5 | G20: 0 | H20: 98.82093023 | I20: 0.9079700855 | J20: 90.79700855 | K20: 85.62 | L20: 0 | M20: 0 | N20: 85.62 | O20: 0.851008846 | P20: 85.1008846 | Q20: 100 | R20: 2 | S20: 0 | T20: 102 | U20: 0.8869565217 | V20: 88.69565217 | W20: 86.59958615 | X20: 18
A21: 19 | B21: 2021210594 | C21: 崔祎 | D21: 工程学硕 | E21: 98.27209302 | F21: 0 | G21: 0 | H21: 98.27209302 | I21: 0.9029273504 | J21: 90.29273504 | K21: 84.76 | L21: 1 | M21: 0 | N21: 85.76 | O21: 0.8524003578 | P21: 85.24003578 | Q21: 100 | R21: 0 | S21: 0 | T21: 100 | U21: 0.8695652174 | V21: 86.95652174 | W21: 86.42222423 | X21: 19
A22: 20 | B22: 2021210560 | C22: 宋雨珍 | D22: 工程学硕 | E22: 98.38604651 | F22: 3.1 | G22: 0 | H22: 101.4860465 | I22: 0.932457265 | J22: 93.2457265 | K22: 84.825 | L22: 0 | M22: 0 | N22: 84.825 | O22: 0.843107047 | P22: 84.3107047 | Q22: 100 | R22: 0 | S22: 0 | T22: 100 | U22: 0.8695652174 | V22: 86.95652174 | W22: 86.36229076 | X22: 20
A23: 21 | B23: 2021210554 | C23: 王飞 | D23: 工程学硕 | E23: 98.27209302 | F23: 4 | G23: 0 | H23: 102.272093 | I23: 0.9396794872 | J23: 93.96794872 | K23: 84.45 | L23: 0 | M23: 0 | N23: 84.45 | O23: 0.8393797833 | P23: 83.93797833 | Q23: 100 | R23: 0 | S23: 0 | T23: 100 | U23: 0.8695652174 | V23: 86.95652174 | W23: 86.24582675 | X23: 21
A24: 22 | B24: 2021210623 | C24: 万自杰 | D24: 工程学硕 | E24: 98.27209302 | F24: 0 | G24: 0 | H24: 98.27209302 | I24: 0.9029273504 | J24: 90.29273504 | K24: 83.55 | L24: 0 | M24: 0 | N24: 83.55 | O24: 0.8304343505 | P24: 83.04343505 | Q24: 100 | R24: 6.666666667 | S24: 0 | T24: 106.6666667 | U24: 0.9275362319 | V24: 92.75362319 | W24: 85.46431386 | X24: 22
A25: 23 | B25: 2021210515 | C25: 池宇 | D25: 工程学硕 | E25: 98.15813953 | F25: 2.73 | G25: 0 | H25: 100.8881395 | I25: 0.9269636752 | J25: 92.69636752 | K25: 82.2 | L25: 0 | M25: 0 | N25: 82.2 | O25: 0.8170162012 | P25: 81.70162012 | Q25: 100 | R25: 0 | S25: 0 | T25: 100 | U25: 0.8695652174 | V25: 86.95652174 | W25: 84.42605976 | X25: 23
A26: 24 | B26: 2021210552 | C26: 张琳怡 | D26: 工程学硕 | E26: 98.35348837 | F26: 1 | G26: 0 | H26: 99.35348837 | I26: 0.9128632479 | J26: 91.28632479 | K26: 82.36 | L26: 0 | M26: 0 | N26: 82.36 | O26: 0.8186065003 | P26: 81.86065003 | Q26: 100 | R26: 0 | S26: 0 | T26: 100 | U26: 0.8695652174 | V26: 86.95652174 | W26: 84.25537216 | X26: 24
A27: 25 | B27: 2021210595 | C27: 李孟原 | D27: 工程学硕 | E27: 98.25581395 | F27: 0 | G27: 0 | H27: 98.25581395 | I27: 0.9027777778 | J27: 90.27777778 | K27: 81.99 | L27: 0 | M27: 0 | N27: 81.99 | O27: 0.8149289335 | P27: 81.49289335 | Q27: 100 | R27: 0 | S27: 0 | T27: 100 | U27: 0.8695652174 | V27: 86.95652174 | W27: 83.79623308 | X27: 25
A28: 26 | B28: 2021210642 | C28: 许怀宇 | D28: 工程学硕 | E28: 95.32093023 | F28: 0.5 | G28: 0 | H28: 95.82093023 | I28: 0.8804059829 | J28: 88.04059829 | K28: 82.48 | L28: 0 | M28: 0 | N28: 82.48 | O28: 0.8197992247 | P28: 81.97992247 | Q28: 100 | R28: 0 | S28: 0 | T28: 100 | U28: 0.8695652174 | V28: 86.95652174 | W28: 83.68971756 | X28: 26
A29: 27 | B29: 2021210551 | C29: 徐万里 | D29: 工程学硕 | E29: 98.22325581 | F29: 0 | G29: 0 | H29: 98.22325581 | I29: 0.9024786325 | J29: 90.24786325 | K29: 81.59 | L29: 0 | M29: 0 | N29: 81.59 | O29: 0.8109531856 | P29: 81.09531856 | Q29: 100 | R29: 0 | S29: 0 | T29: 100 | U29: 0.8695652174 | V29: 86.95652174 | W29: 83.51194781 | X29: 27
A30: 28 | B30: 2021210522 | C30: 孟祥宇 | D30: 工程学硕 | E30: 98.25581395 | F30: 2.7 | G30: 0 | H30: 100.955814 | I30: 0.9275854701 | J30: 92.75854701 | K30: 80.54 | L30: 0 | M30: 0 | N30: 80.54 | O30: 0.8005168472 | P30: 80.05168472 | Q30: 100 | R30: 0 | S30: 0 | T30: 100 | U30: 0.8695652174 | V30: 86.95652174 | W30: 83.28354088 | X30: 28
A31: 29 | B31: 2021210586 | C31: 刘康 | D31: 工程学硕 | E31: 98.25581395 | F31: 2.86 | G31: 0 | H31: 101.115814 | I31: 0.9290555556 | J31: 92.90555556 | K31: 79.54 | L31: 0 | M31: 0 | N31: 79.54 | O31: 0.7905774774 | P31: 79.05774774 | Q31: 100 | R31: 0 | S31: 0 | T31: 100 | U31: 0.8695652174 | V31: 86.95652174 | W31: 82.6171867 | X31: 29
A32: 30 | B32: 2021210558 | C32: 吕文浩 | D32: 工程学硕 | E32: 98.41860465 | F32: 5.5 | G32: 0 | H32: 103.9186047 | I32: 0.9548076923 | J32: 95.48076923 | K32: 78.68 | L32: 0 | M32: 0 | N32: 78.68 | O32: 0.7820296193 | P32: 78.20296193 | Q32: 100 | R32: 0 | S32: 0 | T32: 100 | U32: 0.8695652174 | V32: 86.95652174 | W32: 82.53387937 | X32: 30
A33: 31 | B33: 2021210613 | C33: 刘文瑞 | D33: 工程学硕 | E33: 98.36976744 | F33: 4.54 | G33: 0 | H33: 102.9097674 | I33: 0.9455384616 | J33: 94.55384616 | K33: 78.47 | L33: 0 | M33: 0 | N33: 78.47 | O33: 0.7799423517 | P33: 77.99423517 | Q33: 100 | R33: 0 | S33: 0 | T33: 100 | U33: 0.8695652174 | V33: 86.95652174 | W33: 82.20238602 | X33: 31
A34: 32 | B34: 2021210641 | C34: 刘浪 | D34: 工程学硕 | E34: 95.20697674 | F34: 2 | G34: 0 | H34: 97.20697674 | I34: 0.8931410257 | J34: 89.31410257 | K34: 79.04 | L34: 0 | M34: 0 | N34: 79.04 | O34: 0.7856077925 | P34: 78.56077925 | Q34: 100 | R34: 0 | S34: 0 | T34: 100 | U34: 0.8695652174 | V34: 86.95652174 | W34: 81.55101816 | X34: 32
A35: 33 | B35: 2021210583 | C35: 罗嘉 | D35: 工程学硕 | E35: 98.32093023 | F35: 0 | G35: 0 | H35: 98.32093023 | I35: 0.9033760684 | J35: 90.33760684 | K35: 75.98 | L35: 0 | M35: 0 | N35: 75.98 | O35: 0.7551933207 | P35: 75.51933207 | Q35: 100 | R35: 15 | S35: 0 | T35: 115 | U35: 1 | V35: 100 | W35: 80.93105382 | X35: 33
A36: 34 | B36: 2021210624 | C36: 范程宇 | D36: 工程学硕 | E36: 95.27209302 | F36: 3 | G36: 0 | H36: 98.27209302 | I36: 0.9029273504 | J36: 90.29273504 | K36: 77.11 | L36: 0 | M36: 0 | N36: 77.11 | O36: 0.7664248087 | P36: 76.64248087 | Q36: 100 | R36: 0 | S36: 0 | T36: 100 | U36: 0.8695652174 | V36: 86.95652174 | W36: 80.40393579 | X36: 34
A37: 35 | B37: 2021210544 | C37: 卢智宇 | D37: 工程学硕 | E37: 98.28837209 | F37: 0 | G37: 0 | H37: 98.28837209 | I37: 0.9030769231 | J37: 90.30769231 | K37: 76.97 | L37: 0 | M37: 0 | N37: 76.97 | O37: 0.7650332969 | P37: 76.50332969 | Q37: 100 | R37: 0 | S37: 0 | T37: 100 | U37: 0.8695652174 | V37: 86.95652174 | W37: 80.30952142 | X37: 35
A38: 36 | B38: 2021210534 | C38: 徐新勇 | D38: 工程学硕 | E38: 98.23953488 | F38: 0 | G38: 0 | H38: 98.23953488 | I38: 0.9026282051 | J38: 90.26282051 | K38: 76.87 | L38: 0 | M38: 0 | N38: 76.87 | O38: 0.7640393599 | P38: 76.40393599 | Q38: 100 | R38: 0 | S38: 0 | T38: 100 | U38: 0.8695652174 | V38: 86.95652174 | W38: 80.23097147 | X38: 36
A39: 37 | B39: 2021210581 | C39: 李龙静 | D39: 工程学硕 | E39: 98.36976744 | F39: 0 | G39: 0 | H39: 98.36976744 | I39: 0.9038247863 | J39: 90.38247863 | K39: 76.26 | L39: 0 | M39: 0 | N39: 76.26 | O39: 0.7579763443 | P39: 75.79763443 | Q39: 100 | R39: 0 | S39: 0 | T39: 100 | U39: 0.8695652174 | V39: 86.95652174 | W39: 79.830492 | X39: 37
A40: 38 | B40: 2021210614 | C40: 王栋栋 | D40: 工程学硕 | E40: 98.27209302 | F40: 0 | G40: 0 | H40: 98.27209302 | I40: 0.9029273504 | J40: 90.29273504 | K40: 75.93 | L40: 0 | M40: 0 | N40: 75.93 | O40: 0.7546963523 | P40: 75.46963523 | Q40: 100 | R40: 0 | S40: 0 | T40: 100 | U40: 0.8695652174 | V40: 86.95652174 | W40: 79.58294384 | X40: 38
A41: 39 | B41: 2021210502 | C41: 蒋泽龙 | D41: 工程学硕 | E41: 98.36976744 | F41: 0 | G41: 0 | H41: 98.36976744 | I41: 0.9038247863 | J41: 90.38247863 | K41: 71.66 | L41: 0 | M41: 0 | N41: 71.66 | O41: 0.712255243 | P41: 71.2255243 | Q41: 100 | R41: 0 | S41: 0 | T41: 100 | U41: 0.8695652174 | V41: 86.95652174 | W41: 76.63001491 | X41: 39

Sheet 工程专硕
A1: 序号 | B1: 学号 | C1: 姓名 | D1: 方向 | E1: 德育成绩 | K1: 智育成绩 | Q1: 文体成绩 | W1: 总分 | X1: 排名
E2: 基础分 | F2: 奖励分 | G2: 惩罚分 | H2: 个人德育总分 | I2: 个人德育总分/基准 | J2: 德育总成绩 | K2: 基础分 | L2: 奖励分 | M2: 惩罚分 | N2: 个人智育总分 | O2: 个人智育总分/基准 | P2: 智育总成绩 | Q2: 基本分 | R2: 奖励分 | S2: 惩罚分 | T2: 个人文体总分 | U2: 个人文体总分/基准 | V2: 文体总成绩
A3: 1 | B3: 2021215308 | C3: 赵晓晴 | D3: 工程专硕 | E3: 97.98780488 | F3: 7.711111112 | G3: 0 | H3: 105.698916 | I3: 0.9656788589 | J3: 96.56788589 | K3: 90.3375 | L3: 0 | M3: 0 | N3: 90.3375 | O3: 0.9961021491 | P3: 99.61021491 | Q3: 100 | R3: 0 | S3: 0 | T3: 100 | U3: 0.9225092251 | V3: 92.25092251 | W3: 98.26581986 | X3: 1
A4: 2 | B4: 2021215347 | C4: 邢希贝 | D4: 工程专硕 | E4: 98.03902439 | F4: 4 | G4: 0 | H4: 102.0390244 | I4: 0.9322416196 | J4: 93.22416196 | K4: 90.691 | L4: 0 | M4: 0 | N4: 90.691 | O4: 1 | P4: 100 | Q4: 100 | R4: 0 | S4: 0 | T4: 100 | U4: 0.9225092251 | V4: 92.25092251 | W4: 97.86992464 | X4: 2
A5: 3 | B5: 2021215371 | C5: 王帅 | D5: 工程专硕 | E5: 98.07317073 | F5: 7 | G5: 0 | H5: 105.0731707 | I5: 0.9599619699 | J5: 95.99619699 | K5: 89.24264706 | L5: 0 | M5: 0 | N5: 89.24264706 | O5: 0.9840298051 | P5: 98.40298051 | Q5: 100 | R5: 3.333333333 | S5: 0 | T5: 103.3333333 | U5: 0.9532595326 | V5: 95.32595326 | W5: 97.61392109 | X5: 3
A6: 4 | B6: 2021215349 | C6: 李国栋 | D6: 工程专硕 | E6: 98.0902439 | F6: 5 | G6: 0 | H6: 103.0902439 | I6: 0.941845696 | J6: 94.1845696 | K6: 88.75833333 | L6: 0 | M6: 0 | N6: 88.75833333 | O6: 0.9786895429 | P6: 97.86895429 | Q6: 100 | R6: 3 | S6: 0 | T6: 103 | U6: 0.9501845018 | V6: 95.01845018 | W6: 96.84702694 | X6: 4
A7: 5 | B7: 2021215381 | C7: 祝怀英 | D7: 工程专硕 | E7: 98.02195122 | F7: 5 | G7: 0 | H7: 103.0219512 | I7: 0.9412217653 | J7: 94.12217653 | K7: 88.40470588 | L7: 0 | M7: 0 | N7: 88.40470588 | O7: 0.9747902866 | P7: 97.47902866 | Q7: 100 | R7: 0 | S7: 0 | T7: 100 | U7: 0.9225092251 | V7: 92.25092251 | W7: 96.28484762 | X7: 5
A8: 6 | B8: 2021215327 | C8: 陈俊杰 | D8: 工程专硕 | E8: 98.10731707 | F8: 3.833333335 | G8: 0 | H8: 101.9406504 | I8: 0.9313428623 | J8: 93.13428623 | K8: 86.33625 | L8: 0 | M8: 0 | N8: 86.33625 | O8: 0.9519825562 | P8: 95.19825562 | Q8: 100 | R8: 0 | S8: 0 | T8: 100 | U8: 0.9225092251 | V8: 92.25092251 | W8: 94.49072843 | X8: 6
A9: 7 | B9: 2021215328 | C9: 金姝彤 | D9: 工程专硕 | E9: 98.00487805 | F9: 5.833333335 | G9: 0 | H9: 103.8382114 | I9: 0.9486792229 | J9: 94.86792229 | K9: 84.989125 | L9: 0 | M9: 0 | N9: 84.989125 | O9: 0.9371285464 | P9: 93.71285464 | Q9: 100 | R9: 2 | S9: 0 | T9: 102 | U9: 0.9409594096 | V9: 94.09594096 | W9: 93.9821768 | X9: 7
A10: 8 | B10: 2021215346 | C10: 刘莹莹 | D10: 工程专硕 | E10: 97.97073171 | F10: 0 | G10: 0 | H10: 97.97073171 | I10: 0.8950731757 | J10: 89.50731757 | K10: 86.291 | L10: 0 | M10: 0 | N10: 86.291 | O10: 0.9514836092 | P10: 95.14836092 | Q10: 100 | R10: 0 | S10: 0 | T10: 100 | U10: 0.9225092251 | V10: 92.25092251 | W10: 93.73040841 | X10: 8
A11: 9 | B11: 2021215307 | C11: 杨同 | D11: 工程专硕 | E11: 97.8 | F11: 11.65555555 | G11: 0 | H11: 109.4555556 | I11: 1 | J11: 100 | K11: 82.35988235 | L11: 0 | M11: 0 | N11: 82.35988235 | O11: 0.9081373273 | P11: 90.81373273 | Q11: 100 | R11: 3.333333333 | S11: 0 | T11: 103.3333333 | U11: 0.9532595326 | V11: 95.32595326 | W11: 93.10220824 | X11: 9
A12: 10 | B12: 2021215359 | C12: 李阳 | D12: 工程专硕 | E12: 98.07317073 | F12: 0 | G12: 0 | H12: 98.07317073 | I12: 0.8960090718 | J12: 89.60090718 | K12: 85.255 | L12: 0 | M12: 0 | N12: 85.255 | O12: 0.9400602044 | P12: 94.00602044 | Q12: 100 | R12: 0 | S12: 0 | T12: 100 | U12: 0.9225092251 | V12: 92.25092251 | W12: 92.949488 | X12: 10
A13: 11 | B13: 2021215302 | C13: 张佳辉 | D13: 工程专硕 | E13: 97.88536585 | F13: 0 | G13: 0 | H13: 97.88536585 | I13: 0.8942932623 | J13: 89.42932623 | K13: 84.11875 | L13: 0 | M13: 0 | N13: 84.11875 | O13: 0.9275313978 | P13: 92.75313978 | Q13: 100 | R13: 0 | S13: 0 | T13: 100 | U13: 0.9225092251 | V13: 92.25092251 | W13: 92.03815534 | X13: 11
A14: 12 | B14: 2021215380 | C14: 魏少平 | D14: 工程专硕 | E14: 98.10731707 | F14: 5.5 | G14: 0 | H14: 103.6073171 | I14: 0.9465697428 | J14: 94.65697428 | K14: 80.91382353 | L14: 0 | M14: 0 | N14: 80.91382353 | O14: 0.8921924285 | P14: 89.21924285 | Q14: 100 | R14: 0 | S14: 0 | T14: 100 | U14: 0.9225092251 | V14: 92.25092251 | W14: 90.6099571 | X14: 12
A15: 13 | B15: 2021215370 | C15: 邵月梅 | D15: 工程专硕 | E15: 97.95365854 | F15: 0 | G15: 0 | H15: 97.95365854 | I15: 0.894917193 | J15: 89.4917193 | K15: 82.06661765 | L15: 0 | M15: 0 | N15: 82.06661765 | O15: 0.904903658 | P15: 90.4903658 | Q15: 100 | R15: 0 | S15: 0 | T15: 100 | U15: 0.9225092251 | V15: 92.25092251 | W15: 90.46669217 | X15: 13
A16: 14 | B16: 2021215330 | C16: 杨田萌 | D16: 工程专硕 | E16: 97.83414634 | F16: 3 | G16: 0 | H16: 100.8341463 | I16: 0.9212336992 | J16: 92.12336992 | K16: 79.88125 | L16: 0 | M16: 0 | N16: 79.88125 | O16: 0.8808068055 | P16: 88.08068055 | Q16: 100 | R16: 0 | S16: 0 | T16: 100 | U16: 0.9225092251 | V16: 92.25092251 | W16: 89.30624262 | X16: 14
A17: 15 | B17: 2021215301 | C17: 于川 | D17: 工程专硕 | E17: 97.95 | F17: 0 | G17: 0 | H17: 97.95 | I17: 0.8948837681 | J17: 89.48837681 | K17: 80.53125 | L17: 0 | M17: 0 | N17: 80.53125 | O17: 0.8879739996 | P17: 88.79739996 | Q17: 100 | R17: 0 | S17: 0 | T17: 100 | U17: 0.9225092251 | V17: 92.25092251 | W17: 89.28094759 | X17: 15
A18: 16 | B18: 2021215363 | C18: 吴亚男 | D18: 工程专硕 | E18: 97.88536585 | F18: 0 | G18: 0 | H18: 97.88536585 | I18: 0.8942932623 | J18: 89.42932623 | K18: 80.39660714 | L18: 0 | M18: 0 | N18: 80.39660714 | O18: 0.8864893666 | P18: 88.64893666 | Q18: 100 | R18: 0 | S18: 0 | T18: 100 | U18: 0.9225092251 | V18: 92.25092251 | W18: 89.16521316 | X18: 16
A19: 17 | B19: 2021215320 | C19: 刘晓东 | D19: 工程专硕 | E19: 97.88536585 | F19: 10.4 | G19: 0 | H19: 108.2853659 | I19: 0.9893089967 | J19: 98.93089967 | K19: 77.06726316 | L19: 0 | M19: 0 | N19: 77.06726316 | O19: 0.8497785134 | P19: 84.97785134 | Q19: 100 | R19: 2 | S19: 0 | T19: 102 | U19: 0.9409594096 | V19: 94.09594096 | W19: 88.68026997 | X19: 17
A20: 18 | B20: 2021215354 | C20: 苑泊盈 | D20: 工程专硕 | E20: 98.03902439 | F20: 4.733333334 | G20: 0 | H20: 102.7723577 | I20: 0.9389414471 | J20: 93.89414471 | K20: 76.64083333 | L20: 0 | M20: 0 | N20: 76.64083333 | O20: 0.8450765052 | P20: 84.50765052 | Q20: 100 | R20: 8.4 | S20: 0 | T20: 108.4 | U20: 1 | V20: 100 | W20: 87.93418431 | X20: 18
A21: 19 | B21: 2021215311 | C21: 廉开程 | D21: 工程专硕 | E21: 98.10731707 | F21: 8.133333333 | G21: 0 | H21: 106.2406504 | I21: 0.970628214 | J21: 97.0628214 | K21: 75.86 | L21: 0 | M21: 0 | N21: 75.86 | O21: 0.8364666836 | P21: 83.64666836 | Q21: 100 | R21: 3.4 | S21: 0 | T21: 103.4 | U21: 0.9538745387 | V21: 95.38745387 | W21: 87.50397752 | X21: 19
A22: 20 | B22: 2021215362 | C22: 刘文强 | D22: 工程专硕 | E22: 98.02195122 | F22: 1.5 | G22: 0 | H22: 99.52195122 | I22: 0.9092453162 | J22: 90.92453162 | K22: 77.62593985 | L22: 0 | M22: 0 | N22: 77.62593985 | O22: 0.8559387354 | P22: 85.59387354 | Q22: 100 | R22: 0 | S22: 0 | T22: 100 | U22: 0.9225092251 | V22: 92.25092251 | W22: 87.32571005 | X22: 20
A23: 21 | B23: 2021215350 | C23: 马强 | D23: 工程专硕 | E23: 98.03902439 | F23: 0 | G23: 0 | H23: 98.03902439 | I23: 0.8956971064 | J23: 89.56971064 | K23: 77.63 | L23: 0 | M23: 0 | N23: 77.63 | O23: 0.8559835044 | P23: 85.59835044 | Q23: 100 | R23: 0 | S23: 0 | T23: 100 | U23: 0.9225092251 | V23: 92.25092251 | W23: 87.05787969 | X23: 21
A24: 22 | B24: 2021215333 | C24: 刘学治 | D24: 工程专硕 | E24: 98.14146341 | F24: 4.6 | G24: 0 | H24: 102.7414634 | I24: 0.9386591927 | J24: 93.86591927 | K24: 74.98370588 | L24: 0 | M24: 0 | N24: 74.98370588 | O24: 0.8268042681 | P24: 82.68042681 | Q24: 100 | R24: 0 | S24: 0 | T24: 100 | U24: 0.9225092251 | V24: 92.25092251 | W24: 85.87457488 | X24: 22
A25: 23 | B25: 2021215345 | C25: 陈君 | D25: 工程专硕 | E25: 98.03902439 | F25: 0 | G25: 0 | H25: 98.03902439 | I25: 0.8956971064 | J25: 89.56971064 | K25: 74.63 | L25: 0 | M25: 0 | N25: 74.63 | O25: 0.822904147 | P25: 82.2904147 | Q25: 100 | R25: 0 | S25: 0 | T25: 100 | U25: 0.9225092251 | V25: 92.25092251 | W25: 84.74232467 | X25: 23
A26: 24 | B26: 2021215361 | C26: 周文睿 | D26: 工程专硕 | E26: 98.10731707 | F26: 0 | G26: 0 | H26: 98.10731707 | I26: 0.8963210371 | J26: 89.63210371 | K26: 73.95107955 | L26: 0 | M26: 0 | N26: 73.95107955 | O26: 0.8154180629 | P26: 81.54180629 | Q26: 100 | R26: 0 | S26: 0 | T26: 100 | U26: 0.9225092251 | V26: 92.25092251 | W26: 84.2307774 | X26: 24
A27: 25 | B27: 2021215303 | C27: 赵志浩 | D27: 工程专硕 | E27: 97.86829268 | F27: 0 | G27: 0 | H27: 97.86829268 | I27: 0.8941372796 | J27: 89.41372796 | K27: 73.43473684 | L27: 0 | M27: 0 | N27: 73.43473684 | O27: 0.8097246347 | P27: 80.97246347 | Q27: 100 | R27: 0 | S27: 0 | T27: 100 | U27: 0.9225092251 | V27: 92.25092251 | W27: 83.78856227 | X27: 25

Sheet 环境学硕
A1: 序号 | B1: 学号 | C1: 姓名 | D1: 方向 | E1: 德育成绩 | K1: 智育成绩 | Q1: 文体成绩 | W1: 总分 | X1: 排名
E2: 基础分 | F2: 奖励分 | G2: 惩罚分 | H2: 个人德育总分 | I2: 个人德育总分/基准 | J2: 德育总成绩 | K2: 基础分 | L2: 奖励分 | M2: 惩罚分 | N2: 个人智育总分 | O2: 个人智育总分/基准 | P2: 智育总成绩 | Q2: 基础分 | R2: 奖励分 | S2: 惩罚分 | T2: 个人文体总分 | U2: 个人文体总分/基准 | V2: 文体总成绩
A3: 1 | B3: 2021210654 | C3: 韦标 | D3: 环境学硕 | E3: 96.03653846 | F3: 2 | G3: 0 | H3: 98.03653846 | I3: 0.9211296618 | J3: 92.11296618 | K3: 89.80666667 | M3: 0 | N3: 89.80666667 | O3: 1 | P3: 100 | Q3: 100 | S3: 0 | T3: 100 | U3: 0.937470704 | V3: 93.7470704 | W3: 97.79730028 | X3: 1
A4: 2 | B4: 2021210668 | C4: 邢雨菲 | D4: 环境学硕 | E4: 96.18461538 | F4: 7.8 | G4: 0 | H4: 103.9846154 | I4: 0.9770164788 | J4: 97.70164788 | K4: 87.31333333 | M4: 0 | N4: 87.31333333 | O4: 0.9722366565 | P4: 97.22366565 | Q4: 100 | S4: 0 | T4: 100 | U4: 0.937470704 | V4: 93.7470704 | W4: 96.97160257 | X4: 2
A5: 3 | B5: 2021210653 | C5: 游恋 | D5: 环境学硕 | E5: 96.10384615 | F5: 0 | G5: 0 | H5: 96.10384615 | I5: 0.9029705117 | J5: 90.29705117 | K5: 86.66571429 | L5: 0.8333 | M5: 0 | N5: 87.49871429 | O5: 0.9743008791 | P5: 97.43008791 | Q5: 100 | S5: 0 | T5: 100 | U5: 0.937470704 | V5: 93.7470704 | W5: 95.63517881 | X5: 3
A6: 4 | B6: 2021210658 | C6: 李蒙 | D6: 环境学硕 | E6: 96.07692308 | F6: 3 | G6: 0 | H6: 99.07692308 | I6: 0.9309048858 | J6: 93.09048858 | K6: 86.67333333 | M6: 0 | N6: 86.67333333 | O6: 0.9651102368 | P6: 96.51102368 | Q6: 100 | S6: 0 | T6: 100 | U6: 0.937470704 | V6: 93.7470704 | W6: 95.55052133 | X6: 4
A7: 5 | B7: 2021210660 | C7: 万雨若 | D7: 环境学硕 | E7: 96.26538462 | F7: 6.6 | G7: 0 | H7: 102.8653846 | I7: 0.9665004337 | J7: 96.65004337 | K7: 85.69333333 | M7: 0 | N7: 85.69333333 | O7: 0.9541979066 | P7: 95.41979066 | Q7: 100 | S7: 0 | T7: 100 | U7: 0.937470704 | V7: 93.7470704 | W7: 95.49856918 | X7: 5
A8: 6 | B8: 2021210679 | C8: 刘欢欢 | D8: 环境学硕 | E8: 96.29230769 | F8: 6 | G8: 0 | H8: 102.2923077 | I8: 0.9611159295 | J8: 96.11159295 | K8: 81.48666667 | L8: 3.76 | M8: 0 | N8: 85.24666667 | O8: 0.9492242595 | P8: 94.92242595 | Q8: 100 | S8: 0 | T8: 100 | U8: 0.937470704 | V8: 93.7470704 | W8: 95.0427238 | X8: 6
A9: 7 | B9: 2021210645 | C9: 李佳昕 | D9: 环境学硕 | E9: 96.03653846 | F9: 2 | G9: 0 | H9: 98.03653846 | I9: 0.9211296618 | J9: 92.11296618 | K9: 85.565 | M9: 0 | N9: 85.565 | O9: 0.952768911 | P9: 95.2768911 | Q9: 100 | S9: 0 | T9: 100 | U9: 0.937470704 | V9: 93.7470704 | W9: 94.49112405 | X9: 7
A10: 8 | B10: 2021210682 | C10: 王亚卓 | D10: 环境学硕 | E10: 95.90192308 | F10: 3.5 | G10: 0 | H10: 99.40192308 | I10: 0.933958514 | J10: 93.3958514 | K10: 85.23333333 | M10: 0 | N10: 85.23333333 | O10: 0.9490757924 | P10: 94.90757924 | Q10: 100 | S10: 0 | T10: 100 | U10: 0.937470704 | V10: 93.7470704 | W10: 94.48918279 | X10: 8
A11: 9 | B11: 2021210657 | C11: 陈雪萱 | D11: 环境学硕 | E11: 96.07692308 | F11: 0 | G11: 0 | H11: 96.07692308 | I11: 0.9027175484 | J11: 90.27175484 | K11: 85.67333333 | M11: 0 | N11: 85.67333333 | O11: 0.953975206 | P11: 95.3975206 | Q11: 100 | S11: 0 | T11: 100 | U11: 0.937470704 | V11: 93.7470704 | W11: 94.20732243 | X11: 9
A12: 10 | B12: 2021210652 | C12: 王海柘 | D12: 环境学硕 | E12: 96.29230769 | F12: 8 | G12: 0 | H12: 104.2923077 | I12: 0.9799074877 | J12: 97.99074877 | K12: 83.64666667 | M12: 0 | N12: 83.64666667 | O12: 0.9314082102 | P12: 93.14082102 | Q12: 100 | S12: 0 | T12: 100 | U12: 0.937470704 | V12: 93.7470704 | W12: 94.17143151 | X12: 10
A13: 11 | B13: 2021210665 | C13: 李思萌 | D13: 环境学硕 | E13: 96.05 | F13: 0.5 | G13: 0 | H13: 96.55 | I13: 0.9071624747 | J13: 90.71624747 | K13: 85.45333333 | M13: 0 | N13: 85.45333333 | O13: 0.9515254992 | P13: 95.15254992 | Q13: 100 | S13: 0 | T13: 100 | U13: 0.937470704 | V13: 93.7470704 | W13: 94.12474148 | X13: 11
A14: 12 | B14: 2021210673 | C14: 孙雅倩 | D14: 环境学硕 | E14: 95.98269231 | F14: 1 | G14: 0 | H14: 96.98269231 | I14: 0.9112279561 | J14: 91.12279561 | K14: 85.13142857 | M14: 0 | N14: 85.13142857 | O14: 0.9479410798 | P14: 94.79410798 | Q14: 100 | S14: 0 | T14: 100 | U14: 0.937470704 | V14: 93.7470704 | W14: 93.95514175 | X14: 12
A15: 13 | B15: 2021210662 | C15: 伍心怡 | D15: 环境学硕 | E15: 96.07692308 | F15: 3 | G15: 0 | H15: 99.07692308 | I15: 0.9309048858 | J15: 93.09048858 | K15: 83.88461538 | M15: 0 | N15: 83.88461538 | O15: 0.9340577765 | P15: 93.40577765 | Q15: 100 | S15: 0 | T15: 100 | U15: 0.937470704 | V15: 93.7470704 | W15: 93.37684911 | X15: 13
A16: 14 | B16: 2021210655 | C16: 杨晨璐 | D16: 环境学硕 | E16: 96.13076923 | F16: 10.3 | G16: 0 | H16: 106.4307692 | I16: 1 | J16: 100 | K16: 79.21333333 | L16: 2.625 | M16: 0 | N16: 81.83833333 | O16: 0.9112723629 | P16: 91.12723629 | Q16: 100 | S16: 0 | T16: 100 | U16: 0.937470704 | V16: 93.7470704 | W16: 93.16377244 | X16: 14
A17: 15 | B17: 2021210676 | C17: 罗抒晗 | D17: 环境学硕 | E17: 95.88846154 | F17: 8 | G17: 0 | H17: 103.8884615 | I17: 0.9761130385 | J17: 97.61130385 | K17: 81.79238095 | M17: 0 | N17: 81.79238095 | O17: 0.9107606817 | P17: 91.07606817 | Q17: 100 | R17: 2 | S17: 0 | T17: 102 | U17: 0.9562201181 | V17: 95.62201181 | W17: 92.83770967 | X17: 15
A18: 16 | B18: 2021210650 | C18: 曹瑜 | D18: 环境学硕 | E18: 96.10384615 | F18: 2 | G18: 0 | H18: 98.10384615 | I18: 0.92176207 | J18: 92.176207 | K18: 82.70666667 | M18: 0 | N18: 82.70666667 | O18: 0.9209412813 | P18: 92.09412813 | Q18: 100 | R18: 2 | S18: 0 | T18: 102 | U18: 0.9562201181 | V18: 95.62201181 | W18: 92.46333227 | X18: 16
A19: 17 | B19: 2021210671 | C19: 周梦晗 | D19: 环境学硕 | E19: 95.95576923 | F19: 0 | G19: 0 | H19: 95.95576923 | I19: 0.9015792136 | J19: 90.15792136 | K19: 83.46 | M19: 0 | N19: 83.46 | O19: 0.9293296711 | P19: 92.93296711 | Q19: 100 | S19: 0 | T19: 100 | U19: 0.937470704 | V19: 93.7470704 | W19: 92.45936829 | X19: 17
A20: 18 | B20: 2021210680 | C20: 朱裕文 | D20: 环境学硕 | E20: 96.05 | F20: 0 | G20: 0 | H20: 96.05 | I20: 0.9024645851 | J20: 90.24645851 | K20: 83.03166667 | M20: 0 | N20: 83.03166667 | O20: 0.9245601663 | P20: 92.45601663 | Q20: 100 | S20: 0 | T20: 100 | U20: 0.937470704 | V20: 93.7470704 | W20: 92.14321038 | X20: 18
A21: 19 | B21: 2021210661 | C21: 闫京瑞 | D21: 环境学硕 | E21: 96.13076923 | F21: 4 | G21: 0 | H21: 100.1307692 | I21: 0.9408065915 | J21: 94.08065915 | K21: 81.44666667 | M21: 0 | N21: 81.44666667 | O21: 0.9069111425 | P21: 90.69111425 | Q21: 100 | S21: 0 | T21: 100 | U21: 0.937470704 | V21: 93.7470704 | W21: 91.67461884 | X21: 19
A22: 20 | B22: 2021210670 | C22: 宋明欣 | D22: 环境学硕 | E22: 95.99615385 | F22: 6.6 | G22: 0 | H22: 102.5961538 | I22: 0.9639708008 | J22: 96.39708008 | K22: 80.34 | M22: 0 | N22: 80.34 | O22: 0.894588375 | P22: 89.4588375 | Q22: 100 | S22: 0 | T22: 100 | U22: 0.937470704 | V22: 93.7470704 | W22: 91.27530931 | X22: 20
A23: 21 | B23: 2021210664 | C23: 曾宣凯 | D23: 环境学硕 | E23: 96.03653846 | F23: 0 | G23: 0 | H23: 96.03653846 | I23: 0.9023381035 | J23: 90.23381035 | K23: 81.47619048 | M23: 0 | N23: 81.47619048 | O23: 0.907239891 | P23: 90.7239891 | Q23: 100 | R23: 3.33 | S23: 0 | T23: 103.33 | U23: 0.9686884785 | V23: 96.86884785 | W23: 91.24043922 | X23: 21
A24: 22 | B24: 2021210669 | C24: 陈沛含 | D24: 环境学硕 | E24: 95.99615385 | F24: 3 | G24: 0 | H24: 98.99615385 | I24: 0.930145996 | J24: 93.0145996 | K24: 80.97333333 | M24: 0 | N24: 80.97333333 | O24: 0.9016405612 | P24: 90.16405612 | Q24: 100 | S24: 0 | T24: 100 | U24: 0.937470704 | V24: 93.7470704 | W24: 91.09246624 | X24: 22
A25: 23 | B25: 2021210656 | C25: 马源 | D25: 环境学硕 | E25: 96.15769231 | F25: 0 | G25: 0 | H25: 96.15769231 | I25: 0.9034764383 | J25: 90.34764383 | K25: 80.70266667 | M25: 0 | N25: 80.70266667 | O25: 0.8986266795 | P25: 89.86266795 | Q25: 100 | S25: 0 | T25: 100 | U25: 0.937470704 | V25: 93.7470704 | W25: 90.34810337 | X25: 23
A26: 24 | B26: 2021210672 | C26: 李文静 | D26: 环境学硕 | E26: 95.95576923 | F26: 0 | G26: 0 | H26: 95.95576923 | I26: 0.9015792136 | J26: 90.15792136 | K26: 80.63833333 | M26: 0 | N26: 80.63833333 | O26: 0.8979103259 | P26: 89.79103259 | Q26: 100 | S26: 0 | T26: 100 | U26: 0.937470704 | V26: 93.7470704 | W26: 90.26001413 | X26: 24
A27: 25 | B27: 2021210646 | C27: 牛婧雯 | D27: 环境学硕 | E27: 96.15769231 | F27: 0 | G27: 0 | H27: 96.15769231 | I27: 0.9034764383 | J27: 90.34764383 | K27: 76.32 | L27: 3.76 | M27: 0 | N27: 80.08 | O27: 0.891693267 | P27: 89.1693267 | Q27: 100 | S27: 0 | T27: 100 | U27: 0.937470704 | V27: 93.7470704 | W27: 89.8627645 | X27: 25
A28: 26 | B28: 2021210648 | C28: 李瑶瑶 | D28: 环境学硕 | E28: 93.09038462 | F28: 0 | G28: 0 | H28: 93.09038462 | I28: 0.8746566927 | J28: 87.46566927 | K28: 78.8 | M28: 0 | N28: 78.8 | O28: 0.8774404276 | P28: 87.74404276 | Q28: 100 | R28: 2 | S28: 0 | T28: 102 | U28: 0.9562201181 | V28: 95.62201181 | W28: 88.47616497 | X28: 26
A29: 27 | B29: 2021210674 | C29: 林润静 | D29: 环境学硕 | E29: 93.02307692 | F29: 0 | G29: 0 | H29: 93.02307692 | I29: 0.8740242845 | J29: 87.40242845 | K29: 78.0875 | M29: 0 | N29: 78.0875 | O29: 0.8695067181 | P29: 86.95067181 | Q29: 100 | R29: 3.33 | S29: 0 | T29: 103.33 | U29: 0.9686884785 | V29: 96.86884785 | W29: 88.03284074 | X29: 27
A30: 28 | B30: 2021210663 | C30: 张怡欣 | D30: 环境学硕 | E30: 95.92884615 | F30: 0 | G30: 0 | H30: 95.92884615 | I30: 0.9013262504 | J30: 90.13262504 | K30: 76.42666667 | M30: 0 | N30: 76.42666667 | O30: 0.8510132878 | P30: 85.10132878 | Q30: 100 | S30: 0 | T30: 100 | U30: 0.937470704 | V30: 93.7470704 | W30: 86.97216219 | X30: 28
A31: 29 | B31: 2021210678 | C31: 王昆 | D31: 环境学硕 | E31: 96.02307692 | F31: 0 | G31: 0 | H31: 96.02307692 | I31: 0.9022116219 | J31: 90.22116219 | K31: 75.98833333 | M31: 0 | N31: 75.98833333 | O31: 0.8461324326 | P31: 84.61324326 | Q31: 100 | S31: 0 | T31: 100 | U31: 0.937470704 | V31: 93.7470704 | W31: 86.64820976 | X31: 29
A32: 30 | B32: 2021210677 | C32: 余锦标 | D32: 环境学硕 | E32: 95.94230769 | F32: 0 | G32: 0 | H32: 95.94230769 | I32: 0.901452732 | J32: 90.1452732 | K32: 74.83238095 | M32: 0 | N32: 74.83238095 | O32: 0.8332608673 | P32: 83.32608673 | Q32: 100 | S32: 0 | T32: 106.67 | U32: 1 | V32: 100 | W32: 86.35731535 | X32: 30
A33: 31 | B33: 2021210681 | C33: 孙鹤 | D33: 环境学硕 | E33: 95.95576923 | F33: 0 | G33: 0 | H33: 95.95576923 | I33: 0.9015792136 | J33: 90.15792136 | K33: 75.33125 | M33: 0 | N33: 75.33125 | O33: 0.8388157895 | P33: 83.88157895 | Q33: 100 | R33: 6.67 | S33: 0 | T33: 100 | U33: 0.937470704 | V33: 93.7470704 | W33: 86.12339658 | X33: 31

Sheet 环境专硕
A1: 序号 | B1: 学号 | C1: 姓名 | D1: 方向 | E1: 德育成绩 | K1: 智育成绩 | Q1: 文体成绩 | W1: 总分 | X1: 排名
E2: 基础分 | F2: 奖励分 | G2: 惩罚分 | H2: 个人德育总分 | I2: 个人德育总分/基准 | J2: 德育总成绩 | K2: 基础分 | L2: 奖励分 | M2: 惩罚分 | N2: 个人智育总分 | O2: 个人智育总分/基准 | P2: 智育总成绩 | Q2: 基础分 | R2: 奖励分 | S2: 惩罚分 | T2: 个人文体总分 | U2: 个人文体总分/基准 | V2: 文体总成绩
A3: 1 | B3: 2021215395 | C3: 李昀照 | D3: 环境专硕 | E3: 96.06346154 | F3: 4 | G3: 0 | H3: 100.0634615 | I3: 0.9898415356 | J3: 98.98415356 | K3: 87.91052632 | M3: 0 | N3: 87.91052632 | O3: 1 | P3: 100 | Q3: 100 | R3: 0 | S3: 0 | T3: 100 | U3: 0.967773154 | V3: 96.7773154 | W3: 99.69042385 | X3: 1
A4: 2 | B4: 2021215397 | C4: 尚鹏寅 | D4: 环境专硕 | E4: 96.225 | F4: 0 | G4: 0 | H4: 96.225 | I4: 0.9518709457 | J4: 95.18709457 | K4: 87.69444444 | M4: 0 | N4: 87.69444444 | O4: 0.9975420251 | P4: 99.75420251 | Q4: 100 | R4: 0 | S4: 0 | T4: 100 | U4: 0.967773154 | V4: 96.7773154 | W4: 98.75067329 | X4: 2
A5: 3 | B5: 2021215401 | C5: 黄石雨 | D5: 环境专硕 | E5: 96.17115385 | F5: 4.6 | G5: 0 | H5: 100.7711538 | I5: 0.9968421253 | J5: 99.68421253 | K5: 82.55333333 | L5: 3.76 | M5: 0 | N5: 86.31333333 | O5: 0.9818316071 | P5: 98.18316071 | Q5: 100 | R5: 0 | S5: 0 | T5: 100 | U5: 0.967773154 | V5: 96.7773154 | W5: 98.56017481 | X5: 3
A6: 4 | B6: 2021215400 | C6: 陈茜 | D6: 环境专硕 | E6: 96.09038462 | F6: 5 | G6: 0 | H6: 101.0903846 | I6: 1 | J6: 100 | K6: 86.08625 | M6: 0 | N6: 86.08625 | O6: 0.9792484883 | P6: 97.92484883 | Q6: 100 | R6: 0 | S6: 0 | T6: 100 | U6: 0.967773154 | V6: 96.7773154 | W6: 98.44320264 | X6: 4
A7: 5 | B7: 2021215389 | C7: 彭然 | D7: 环境专硕 | E7: 95.99615385 | F7: 3.4 | G7: 0 | H7: 99.39615385 | I7: 0.983240436 | J7: 98.3240436 | K7: 85.76666667 | L7: 0.4 | M7: 0 | N7: 86.16666667 | O7: 0.9801632441 | P7: 98.01632441 | Q7: 100 | R7: 0 | S7: 0 | T7: 100 | U7: 0.967773154 | V7: 96.7773154 | W7: 98.1683894 | X7: 5
A8: 6 | B8: 2021215403 | C8: 张悦 | D8: 环境专硕 | E8: 96.06346154 | F8: 0 | G8: 0 | H8: 96.06346154 | I8: 0.950272985 | J8: 95.0272985 | K8: 79.21 | L8: 7.46 | M8: 0 | N8: 86.67 | O8: 0.9858887625 | P8: 98.58887625 | Q8: 100 | R8: 0 | S8: 0 | T8: 100 | U8: 0.967773154 | V8: 96.7773154 | W8: 97.90263722 | X8: 6
A9: 7 | B9: 2021215382 | C9: 谭青松 | D9: 环境专硕 | E9: 92.96923077 | F9: 0 | G9: 0 | H9: 92.96923077 | I9: 0.9196644283 | J9: 91.96644283 | K9: 87.16666667 | M9: 0 | N9: 87.16666667 | O9: 0.9915384462 | P9: 99.15384462 | Q9: 100 | R9: 0 | S9: 0 | T9: 100 | U9: 0.967773154 | V9: 96.7773154 | W9: 97.67926893 | X9: 7
A10: 8 | B10: 2021215391 | C10: 包育文 | D10: 环境专硕 | E10: 96.02307692 | F10: 3 | G10: 0 | H10: 99.02307692 | I10: 0.9795499077 | J10: 97.95499077 | K10: 85.49444444 | M10: 0 | N10: 85.49444444 | O10: 0.9725165805 | P10: 97.25165805 | Q10: 100 | R10: 0 | S10: 0 | T10: 100 | U10: 0.967773154 | V10: 96.7773154 | W10: 97.55850756 | X10: 8
A11: 9 | B11: 2021215387 | C11: 叶绮彤 | D11: 环境专硕 | E11: 96.17115385 | F11: 4.6 | G11: 0 | H11: 100.7711538 | I11: 0.9968421253 | J11: 99.68421253 | K11: 84.49 | M11: 0 | N11: 84.49 | O11: 0.961090822 | P11: 96.1090822 | Q11: 100 | R11: 0 | S11: 0 | T11: 100 | U11: 0.967773154 | V11: 96.7773154 | W11: 97.10831985 | X11: 9
A12: 10 | B12: 2021215394 | C12: 徐凌婕 | D12: 环境专硕 | E12: 96.09038462 | F12: 4 | G12: 0 | H12: 100.0903846 | I12: 0.9901078623 | J12: 99.01078623 | K12: 84.13125 | M12: 0 | N12: 84.13125 | O12: 0.9570099683 | P12: 95.70099683 | Q12: 100 | R12: 0 | S12: 0 | T12: 100 | U12: 0.967773154 | V12: 96.7773154 | W12: 96.68650624 | X12: 10
A13: 11 | B13: 2021215402 | C13: 袁帅 | D13: 环境专硕 | E13: 96.19807692 | F13: 0 | G13: 0 | H13: 96.19807692 | I13: 0.9516046189 | J13: 95.16046189 | K13: 81.2275 | L13: 3.76 | M13: 0 | N13: 84.9875 | O13: 0.966749985 | P13: 96.6749985 | Q13: 100 | R13: 0 | S13: 0 | T13: 100 | U13: 0.967773154 | V13: 96.7773154 | W13: 96.58984588 | X13: 11
A14: 12 | B14: 2021215398 | C14: 马霖楠 | D14: 环境专硕 | E14: 96.13076923 | F14: 4 | G14: 0 | H14: 100.1307692 | I14: 0.9905073525 | J14: 99.05073525 | K14: 83.2 | M14: 0 | N14: 83.2 | O14: 0.9464168114 | P14: 94.64168114 | Q14: 100 | R14: 0 | S14: 0 | T14: 100 | U14: 0.967773154 | V14: 96.7773154 | W14: 95.95306218 | X14: 12
A15: 13 | B15: 2021215386 | C15: 李思萌 | D15: 环境专硕 | E15: 96.15769231 | F15: 4 | G15: 0 | H15: 100.1576923 | I15: 0.9907736793 | J15: 99.07736793 | K15: 82.95875 | M15: 0 | N15: 82.95875 | O15: 0.9436725439 | P15: 94.36725439 | Q15: 100 | R15: 0 | S15: 0 | T15: 100 | U15: 0.967773154 | V15: 96.7773154 | W15: 95.76634807 | X15: 13
A16: 14 | B16: 2021215392 | C16: 黄杰锐 | D16: 环境专硕 | E16: 95.96923077 | F16: 4 | G16: 0 | H16: 99.96923077 | I16: 0.9889093918 | J16: 98.89093918 | K16: 81.6 | M16: 0 | N16: 81.6 | O16: 0.9282164881 | P16: 92.82164881 | Q16: 100 | R16: 0 | S16: 0 | T16: 100 | U16: 0.967773154 | V16: 96.7773154 | W16: 94.64673186 | X16: 14
A17: 15 | B17: 2021215399 | C17: 王辰予 | D17: 环境专硕 | E17: 93.10384615 | F17: 0 | G17: 0 | H17: 93.10384615 | I17: 0.9209960622 | J17: 92.09960622 | K17: 81.74444444 | M17: 0 | N17: 81.74444444 | O17: 0.9298595728 | P17: 92.98595728 | Q17: 100 | R17: 3.33 | S17: 0 | T17: 103.33 | U17: 1 | V17: 100 | W17: 93.71093933 | X17: 15
A18: 16 | B18: 2021215396 | C18: 马霄慧 | D18: 环境专硕 | E18: 96.06346154 | F18: 4 | G18: 0 | H18: 100.0634615 | I18: 0.9898415356 | J18: 98.98415356 | K18: 80.36111111 | M18: 0 | N18: 80.36111111 | O18: 0.9141238766 | P18: 91.41238766 | Q18: 100 | R18: 0 | S18: 0 | T18: 100 | U18: 0.967773154 | V18: 96.7773154 | W18: 93.67909521 | X18: 16
A19: 17 | B19: 2021215384 | C19: 康冉 | D19: 环境专硕 | E19: 96.03653846 | F19: 0 | G19: 0 | H19: 96.03653846 | I19: 0.9500066582 | J19: 95.00066582 | K19: 81.15861111 | M19: 0 | N19: 81.15861111 | O19: 0.9231956003 | P19: 92.31956003 | Q19: 100 | R19: 0 | S19: 0 | T19: 100 | U19: 0.967773154 | V19: 96.7773154 | W19: 93.50873125 | X19: 17
A20: 18 | B20: 2021215390 | C20: 张晨 | D20: 环境专硕 | E20: 95.98269231 | F20: 2 | G20: 0 | H20: 97.98269231 | I20: 0.9692582799 | J20: 96.92582799 | K20: 79.69666667 | M20: 0 | N20: 79.69666667 | O20: 0.9065656868 | P20: 90.65656868 | Q20: 100 | R20: 0 | S20: 0 | T20: 100 | U20: 0.967773154 | V20: 96.7773154 | W20: 92.73386808 | X20: 18
A21: 19 | B21: 2021215385 | C21: 裴茂辰 | D21: 环境专硕 | E21: 95.94230769 | F21: 0 | G21: 0 | H21: 95.94230769 | I21: 0.9490745144 | J21: 94.90745144 | K21: 79.495 | M21: 0 | N21: 79.495 | O21: 0.9042716877 | P21: 90.42716877 | Q21: 100 | R21: 0 | S21: 0 | T21: 100 | U21: 0.967773154 | V21: 96.7773154 | W21: 92.16521122 | X21: 19
A22: 20 | B22: 2021215388 | C22: 陈思源 | D22: 环境专硕 | E22: 95.96923077 | F22: 2 | G22: 0 | H22: 97.96923077 | I22: 0.9691251165 | J22: 96.91251165 | K22: 76.71875 | M22: 0 | N22: 76.71875 | O22: 0.872691283 | P22: 87.2691283 | Q22: 100 | R22: 0 | S22: 0 | T22: 100 | U22: 0.967773154 | V22: 96.7773154 | W22: 90.3599675 | X22: 20
A23: 21 | B23: 2021215393 | C23: 孙博 | D23: 环境专硕 | E23: 96.10384615 | F23: 0 | G23: 0 | H23: 96.10384615 | I23: 0.9506724751 | J23: 95.06724751 | K23: 76.10125 | M23: 0 | N23: 76.10125 | O23: 0.8656670957 | P23: 86.56670957 | Q23: 100 | R23: 0 | S23: 0 | T23: 100 | U23: 0.967773154 | V23: 96.7773154 | W23: 89.49519747 | X23: 21

Sheet 国际班
A1: 序号 | B1: 学号 | C1: 姓名 | D1: 方向 | E1: 德育成绩 | K1: 智育成绩 | Q1: 文体成绩 | W1: 总分 | X1: 排名
E2: 基础分 | F2: 奖励分 | G2: 惩罚分 | H2: 个人德育总分 | I2: 个人德育总分/基准 | J2: 德育总成绩 | K2: 基础分 | L2: 奖励分 | M2: 惩罚分 | N2: 个人智育总分 | O2: 个人智育总分/基准 | P2: 智育总成绩 | Q2: 基础分 | R2: 奖励分 | S2: 惩罚分 | T2: 个人文体总分 | U2: 个人文体总分/基准 | V2: 文体总成绩
A3: 1 | B3: 2021210616 | C3: 钱锦秀 | D3: 国际班 | E3: 97.3625 | F3: 32.0000 | G3: 0.0000 | H3: =E3+F3 -> 129.3625 | I3: =H3/129.3625 -> 1.0000 | J3: =I3*100 -> 100.0000 | K3: 90.5340 | L3: 2.7308 | M3: 0.0000 | N3: =K3+L3 -> 93.2648 | O3: =N3/96.6403 -> 0.9651 | P3: =O3*100 -> 96.5071 | Q3: 100.0000 | R3: 0.0000 | S3: 0.0000 | T3: 100.0000 | U3: =T3/100 -> 1.0000 | V3: 100.0000 | W3: =J3*0.2+P3*0.7+V3*0.1 -> 97.5550 | X3: 1
A4: 2 | B4: 2021210619 | C4: 杜少雄 | D4: 国际班 | E4: 97.4500 | F4: 30.8000 | G4: 0.0000 | H4: 128.2500 | I4: 0.9914 | J4: 99.1400 | K4: 89.8560 | L4: 1.6673 | M4: 0.0000 | N4: 91.5233 | O4: =N4/96.6403 -> 0.9471 | P4: 94.7051 | Q4: 100.0000 | R4: 0.0000 | S4: 0.0000 | T4: 100.0000 | U4: 1.0000 | V4: 100.0000 | W4: 96.1216 | X4: 2
A5: 3 | B5: 2021210622 | C5: 尚春丽 | D5: 国际班 | E5: 97.7125 | F5: 6.1000 | G5: 0.0000 | H5: 103.8125 | I5: 0.8025 | J5: 80.2493 | K5: 89.9733 | L5: 6.6670 | M5: 0.0000 | N5: 96.6403 | O5: 1.0000 | P5: 100.0000 | Q5: 100.0000 | R5: 0.0000 | S5: 0.0000 | T5: 100.0000 | U5: 1.0000 | V5: 100.0000 | W5: 96.0499 | X5: 3
A6: 4 | B6: 2021210607 | C6: 蓝帆 | D6: 国际班 | E6: 97.7125 | F6: 1.5000 | G6: 0.0000 | H6: 99.2125 | I6: 0.7669 | J6: 76.6934 | K6: 94.3873 | L6: 0.0000 | M6: 0.0000 | N6: 94.3873 | O6: 0.9767 | P6: 97.6687 | Q6: 100.0000 | R6: 0.0000 | S6: 0.0000 | T6: 100.0000 | U6: 1.0000 | V6: 100.0000 | W6: 93.7068 | X6: 4
A7: 5 | B7: 2021210649 | C7: 杨百玉 | D7: 国际班 | E7: 97.1438 | F7: 13.0000 | G7: 0.0000 | H7: 110.1438 | I7: 0.8514 | J7: 85.1435 | K7: 89.5269 | L7: 1.8750 | M7: 0.0000 | N7: 91.4019 | O7: 0.9458 | P7: 94.5795 | Q7: 100.0000 | R7: 0.0000 | S7: 0.0000 | T7: 100.0000 | U7: 1.0000 | V7: 100.0000 | W7: 93.2343 | X7: 5
A8: 6 | B8: 2021210647 | C8: 金鹏 | D8: 国际班 | E8: 93.9688 | F8: 10.0000 | G8: 0.0000 | H8: 103.9688 | I8: 0.8037 | J8: 80.3701 | K8: 89.3606 | L8: 0.0000 | M8: 0.0000 | N8: 89.3606 | O8: 0.9247 | P8: 92.4672 | Q8: 100.0000 | R8: 0.0000 | S8: 0.0000 | T8: 100.0000 | U8: 1.0000 | V8: 100.0000 | W8: 90.8010 | X8: 6
A9: 7 | B9: 2021215358 | C9: 石婷婷 | D9: 国际班 | E9: 97.5813 | F9: 0.0000 | G9: 0.0000 | H9: 97.5813 | I9: 0.7543 | J9: 75.4324 | K9: 90.3733 | L9: 0.0000 | M9: 0.0000 | N9: 90.3733 | O9: 0.9352 | P9: 93.5152 | Q9: 100.0000 | R9: 0.0000 | S9: 0.0000 | T9: 100.0000 | U9: 1.0000 | V9: 100.0000 | W9: 90.5471 | X9: 7
A10: 8 | B10: 2021210644 | C10: 张腾跃 | D10: 国际班 | E10: 97.8438 | F10: 7.9000 | G10: 0.0000 | H10: 105.7438 | I10: 0.8174 | J10: 81.7422 | K10: 87.9025 | L10: 0.0000 | M10: 0.0000 | N10: 87.9025 | O10: 0.9096 | P10: 90.9584 | Q10: 100.0000 | R10: 0.0000 | S10: 0.0000 | T10: 100.0000 | U10: 1.0000 | V10: 100.0000 | W10: 90.0193 | X10: 8
A11: 9 | B11: 2021210621 | C11: 李晨 | D11: 国际班 | E11: 97.5375 | F11: 1.5000 | G11: 0.0000 | H11: 99.0375 | I11: 0.7656 | J11: 76.5581 | K11: 89.2314 | L11: 0.0000 | M11: 0.0000 | N11: 89.2314 | O11: 0.9233 | P11: 92.3336 | Q11: 100.0000 | R11: 0.0000 | S11: 0.0000 | T11: 100.0000 | U11: 1.0000 | V11: 100.0000 | W11: 89.9451 | X11: 9
A12: 10 | B12: 2021210675 | C12: 王乐琪 | D12: 国际班 | E12: 94.2750 | F12: 1.5000 | G12: 0.0000 | H12: 95.7750 | I12: 0.7404 | J12: 74.0361 | K12: 89.4006 | L12: 0.0000 | M12: 0.0000 | N12: 89.4006 | O12: 0.9251 | P12: 92.5086 | Q12: 100.0000 | R12: 0.0000 | S12: 0.0000 | T12: 100.0000 | U12: 1.0000 | V12: 100.0000 | W12: 89.5632 | X12: 10
A13: 11 | B13: 2021210667 | C13: 刘莉莉 | D13: 国际班 | E13: 94.3625 | F13: 2.5000 | G13: 0.0000 | H13: 96.8625 | I13: 0.7488 | J13: 74.8768 | K13: 87.2378 | L13: 0.0000 | M13: 0.0000 | N13: 87.2378 | O13: 0.9027 | P13: 90.2706 | Q13: 100.0000 | R13: 0.0000 | S13: 0.0000 | T13: 100.0000 | U13: 1.0000 | V13: 100.0000 | W13: 88.1648 | X13: 11
A14: 12 | B14: 2021210627 | C14: 王晓东 | D14: 国际班 | E14: 97.6250 | F14: 0.5000 | G14: 0.0000 | H14: 98.1250 | I14: 0.7585 | J14: 75.8527 | K14: 85.3513 | L14: 0.0000 | M14: 0.0000 | N14: 85.3513 | O14: 0.8832 | P14: 88.3186 | Q14: 100.0000 | R14: 0.0000 | S14: 0.0000 | T14: 100.0000 | U14: 1.0000 | V14: 100.0000 | W14: 86.9935 | X14: 12
A15: 13 | B15: 2021210593 | C15: 陈一新 | D15: 国际班 | E15: 97.1438 | F15: 4.6000 | G15: 0.0000 | H15: 101.7438 | I15: 0.7865 | J15: 78.6501 | K15: 83.6500 | L15: 0.0000 | M15: 0.0000 | N15: 83.6500 | O15: 0.8656 | P15: 86.5581 | Q15: 100.0000 | R15: 0.0000 | S15: 0.0000 | T15: 100.0000 | U15: 1.0000 | V15: 100.0000 | W15: 86.3207 | X15: 13
A16: 14 | B16: 2021215373 | C16: 张东伟 | D16: 国际班 | E16: 97.0563 | F16: 0.0000 | G16: 0.0000 | H16: 97.0563 | I16: 0.7503 | J16: 75.0266 | K16: 83.0250 | L16: 0.0000 | M16: 0.0000 | N16: 83.0250 | O16: 0.8591 | P16: 85.9114 | Q16: 100.0000 | R16: 0.0000 | S16: 0.0000 | T16: 100.0000 | U16: 1.0000 | V16: 100.0000 | W16: 85.1433 | X16: 14
A17: 15 | B17: 2021210651 | C17: 姜峻韬 | D17: 国际班 | E17: 97.0125 | F17: 10.0000 | G17: 0.0000 | H17: 107.0125 | I17: 0.8272 | J17: 82.7230 | K17: 80.2933 | L17: 0.0000 | M17: 0.0000 | N17: 80.2933 | O17: 0.8308 | P17: 83.0847 | Q17: 100.0000 | R17: 0.0000 | S17: 0.0000 | T17: 100.0000 | U17: 1.0000 | V17: 100.0000 | W17: 84.7039 | X17: 15
A18: 16 | B18: 2021215329 | C18: 李伟静 | D18: 国际班 | E18: 97.5375 | F18: 0.0000 | G18: 0.0000 | H18: 97.5375 | I18: 0.7540 | J18: 75.3986 | K18: 82.2359 | L18: 0.0000 | M18: 0.0000 | N18: 82.2359 | O18: 0.8509 | P18: 85.0948 | Q18: 100.0000 | R18: 0.0000 | S18: 0.0000 | T18: 100.0000 | U18: 1.0000 | V18: 100.0000 | W18: 84.6461 | X18: 16
